Company Name,Sub Group,Service Area's,Expense Type,Narrative,Date,Transaction Number,Amount,Supplier Name,Supplier Ref,Period,Year
Allerdale Borough Council,14202,Transport,Director of Resources & PA,Hire Car and petrol,,433406,39.27,BARCLAYCARD COMMERCIAL ,X00207,3,2019
Allerdale Borough Council,16300,Supplies & Services,Tourism Incentive,Budget-Miscellaneous,26/06/2019,433407,120.00,TIVOLI GROUP LTD,A02568,3,2019
Allerdale Borough Council,15603,Supplies & Services,Corporate Postage and Stationary,Franking Machine Costs,26/06/2019,433408,536.80,CORPORATE ASSET SOLUTIONS LTD,A02562,3,2019
Allerdale Borough Council,12301,Premises,Corporate Property Maintenance,Security,19/06/2019,433409,163.00,ADT FIRE & SECURITY PLC,C00035,3,2019
Allerdale Borough Council,16350,Supplies & Services,Planning Policy,Miscellaneous Expenses,05/06/2019,433410,116.67,WASHINGTON CENTRAL HOTEL,A00153,3,2019
Allerdale Borough Council,15904,Supplies & Services,Members Services,Training,05/06/2019,433411,2190.00,LINK SUPPORT SERVICES (UK) LTD,A02631,3,2019
Allerdale Borough Council,16300,Supplies & Services,Off-street - Owned,Budget-Miscellaneous,05/06/2019,433412,152.00,COBALT TELEPHONE TECHNOLOGY,A01008,3,2019
Allerdale Borough Council,15100,Supplies & Services,Museums,"Budget-Equipment, Furniture & Materials",05/06/2019,433413,1500.00,ARTLINK TRANSPORT & STORAGE LTD,A02362,3,2019
Allerdale Borough Council,15501,Supplies & Services,Waste Contract  Operational Costs,Consultants Fees,05/06/2019,433414,2620.00,WALTON GOODLAND LTD,A01226,3,2019
Allerdale Borough Council,16003,Supplies & Services,Off-street - Owned,Security of Cash Movements,05/06/2019,433415,664.00,G4S CASH SOLUTIONS (UK) LTD,A02421,3,2019
Allerdale Borough Council,15101,Supplies & Services,Recycling,Equipment Costs,05/06/2019,433416,608.00,J DUFFY LTD T/A PW CONF BUS SERVICES,A01846,3,2019
Allerdale Borough Council,12405,Premises,Multi-storey Car Park,Rentals and Lease Charges,05/06/2019,433417,72574.91,SCOOP AM LLP,A02086,3,2019
Allerdale Borough Council,15508,Supplies & Services,Bereavement Services,Subscriptions,05/06/2019,433418,310.00,INSTITUTE OF CEMETERY & CREMATORIUM MANAGEMENT,A00958,3,2019
Allerdale Borough Council,15203,Supplies & Services,Street Cleansing,Catering Costs and Consumables,05/06/2019,433419,250.00,HER CITI,A00441,3,2019
Allerdale Borough Council,15100,Supplies & Services,Museums,"Budget-Equipment, Furniture & Materials",19/06/2019,433420,1500.00,ARTLINK TRANSPORT & STORAGE LTD,A02362,3,2019
Allerdale Borough Council,15200,Supplies & Services,Members Services,Budget-Catering,05/06/2019,433421,118.80,AL'S KITCHEN LTD,A00187,3,2019
Allerdale Borough Council,20300,Third Party Payments,Parks and Grounds Maintenance,Budget-Contract Services,26/06/2019,433422,121375.19,TIVOLI GROUP LTD,A02568,3,2019
Allerdale Borough Council,15101,Supplies & Services,Off-street - Owned,Equipment Costs,26/06/2019,433423,360.00,METRIC GROUP LTD,A00568,3,2019
Allerdale Borough Council,15101,Supplies & Services,Recycling,Equipment Costs,05/06/2019,433424,394.00,J DUFFY LTD T/A PW CONF BUS SERVICES,A01846,3,2019
Allerdale Borough Council,15502,Supplies & Services,Legal Services,Land Registry Fees,18/06/2019,433425,42.00,HM LAND REGISTRY,A00505,3,2019
Allerdale Borough Council,15502,Supplies & Services,Legal Services,Land Registry Fees,18/06/2019,433426,51.00,HM LAND REGISTRY,A00505,3,2019
Allerdale Borough Council,15502,Supplies & Services,Legal Services,Land Registry Fees,18/06/2019,433427,101.00,HM LAND REGISTRY,A00505,3,2019
Allerdale Borough Council,15502,Supplies & Services,Legal Services,Land Registry Fees,18/06/2019,433428,66.00,HM LAND REGISTRY,A00505,3,2019
Allerdale Borough Council,15502,Supplies & Services,Legal Services,Land Registry Fees,18/06/2019,433429,24.00,HM LAND REGISTRY,A00505,3,2019
Allerdale Borough Council,15502,Supplies & Services,Legal Services,Land Registry Fees,18/06/2019,433430,6.00,HM LAND REGISTRY,A00505,3,2019
Allerdale Borough Council,15502,Supplies & Services,Legal Services,Land Registry Fees,18/06/2019,433431,45.00,HM LAND REGISTRY,A00505,3,2019
Allerdale Borough Council,15502,Supplies & Services,Legal Services,Land Registry Fees,04/06/2019,433432,27.00,HM LAND REGISTRY,A00505,3,2019
Allerdale Borough Council,21150,Transfer Payments,Shop Front Improvements,General Grants,05/06/2019,433433,621.00,Redacted information - included personal information ,M01641,3,2019
Allerdale Borough Council,14150,Transport,Gates Travel,General-Council Vehicles (Non-Capital),05/06/2019,433434,3309.25,GATES TRAVEL,A01525,3,2019
Allerdale Borough Council,15507,Supplies & Services,Land Charges Service,Searches,05/06/2019,433435,1826.00,CUMBRIA CC,A00066,3,2019
Allerdale Borough Council,16350,Supplies & Services,Off-street - Owned,Miscellaneous Expenses,05/06/2019,433436,1238.10,3C PAYMENT LIMITED,A02382,3,2019
Allerdale Borough Council,15101,Supplies & Services,Commissioning Support Pay Group,Equipment Costs,05/06/2019,433437,139.00,EQUIP4WORK LTD T/A OFFICE FURNITURE ONLINE,A01958,3,2019
Allerdale Borough Council,26000,Earmarked Reserves,Licensing Service,Budget-Expd funded from Reserve,05/06/2019,433438,445.76,ADECCO RECRUITMENT,A00188,3,2019
Allerdale Borough Council,26000,Earmarked Reserves,Transfer of Land Charges Data,Budget-Expd funded from Reserve,05/06/2019,433439,589.04,ADECCO RECRUITMENT,A00188,3,2019
Allerdale Borough Council,26000,Earmarked Reserves,Transfer of Land Charges Data,Budget-Expd funded from Reserve,05/06/2019,433440,589.04,ADECCO RECRUITMENT,A00188,3,2019
Allerdale Borough Council,10401,Employee Costs,Environmental Protection,Agency Staff Costs,05/06/2019,433441,1050.00,G2 RECRUITMENT SOLUTIONS LTD,C00198,3,2019
Allerdale Borough Council,10401,Employee Costs,Environmental Protection,Agency Staff Costs,19/06/2019,433442,277.60,HAYS SPECIALIST RECRUITMENT LTD,A00280,3,2019
Allerdale Borough Council,26000,Earmarked Reserves,Transfer of Land Charges Data,Budget-Expd funded from Reserve,05/06/2019,433443,589.04,ADECCO RECRUITMENT,A00188,3,2019
Allerdale Borough Council,16101,Supplies & Services,Planning and Development,Statutory Notices,12/06/2019,433444,504.00,NEWSQUEST MEDIA GROUP,A02348,3,2019
Allerdale Borough Council,10601,Employee Costs,Training,External Courses & Seminar Fees,05/06/2019,433445,500.00,CENTRE FOR LEADERSHIP PERFORMANCE,A01504,3,2019
Allerdale Borough Council,52106,Capital Expenditure,Solway coast multi-user pathway,Consultants Fees (Capital),12/06/2019,433446,6716.00,BLOOM PROCUREMENT SERVICES LTD,A02360,3,2019
Allerdale Borough Council,10202,Employee Costs,Human Resources Pay Group,Medical Screening,05/06/2019,433447,240.00,Redacted information - included personal information ,A02594,3,2019
Allerdale Borough Council,15506,Supplies & Services,Banking and Interest,Professional Services,12/06/2019,433448,250.00,YOUR PENSION SERVICE ,A01465,3,2019
Allerdale Borough Council,12501,Premises,Other Land & Buildings,NNDR and Other Occupancy Charges,05/06/2019,433449,7308.00,ALLERDALE,A00342,3,2019
Allerdale Borough Council,12403,Premises,Homelessness,Gas,05/06/2019,433450,145.10,NPOWER,X00277,3,2019
Allerdale Borough Council,12403,Premises,Homelessness,Gas,05/06/2019,433451,101.60,NPOWER,X00277,3,2019
Allerdale Borough Council,12403,Premises,Homelessness,Gas,05/06/2019,433452,74.98,NPOWER,X00277,3,2019
Allerdale Borough Council,12403,Premises,Homelessness,Gas,05/06/2019,433453,113.48,NPOWER,X00277,3,2019
Allerdale Borough Council,12403,Premises,Homelessness,Gas,05/06/2019,433454,374.82,NPOWER,X00277,3,2019
Allerdale Borough Council,12403,Premises,Homelessness,Gas,05/06/2019,433455,239.28,NPOWER,X00277,3,2019
Allerdale Borough Council,15506,Supplies & Services,Estates,Professional Services,05/06/2019,433456,1080.00,CARIGIET COWEN,A01190,3,2019
Allerdale Borough Council,15301,Supplies & Services,Street Scene,Uniforms,26/06/2019,433457,-69.58,ARCO LIMITED ,A00045,3,2019
Allerdale Borough Council,12402,Premises,Tenanted Properties,Electricity,05/06/2019,433458,22.12,EON ,X00016,3,2019
Allerdale Borough Council,12402,Premises,Tenanted Properties,Electricity,05/06/2019,433459,14.55,BRITISH GAS ,X00039,3,2019
Allerdale Borough Council,14101,Transport,Waste Contract  Operational Costs,Vehicle Leasing,05/06/2019,433460,808.40,DAYS FLEET,A02515,3,2019
Allerdale Borough Council,10401,Employee Costs,Customer Services Pay Group,Agency Staff Costs,05/06/2019,433461,600.98,ADECCO RECRUITMENT,A00188,3,2019
Allerdale Borough Council,10401,Employee Costs,Customer Services Pay Group,Agency Staff Costs,05/06/2019,433462,573.12,ADECCO RECRUITMENT,A00188,3,2019
Allerdale Borough Council,33117,Income,Off-street - Owned,Car Parks - Income from Machines,05/06/2019,433463,5.00,Redacted information - included personal information ,M01642,3,2019
Allerdale Borough Council,33117,Income,Off-street - Owned,Car Parks - Income from Machines,05/06/2019,433464,6.42,Redacted information - included personal information ,M01643,3,2019
Allerdale Borough Council,33117,Income,Off-street - Owned,Car Parks - Income from Machines,05/06/2019,433465,143.33,Redacted information - included personal information ,M01644,3,2019
Allerdale Borough Council,33117,Income,Off-street - Owned,Car Parks - Income from Machines,05/06/2019,433466,6.42,Redacted information - included personal information ,M01645,3,2019
Allerdale Borough Council,33117,Income,Off-street - Owned,Car Parks - Income from Machines,05/06/2019,433467,25.00,Redacted information - included personal information ,M01646,3,2019
Allerdale Borough Council,33117,Income,Off-street - Owned,Car Parks - Income from Machines,05/06/2019,433468,25.00,Redacted information - included personal information ,M01647,3,2019
Allerdale Borough Council,20111,Third Party Payments,Localities & Partnerships,Voluntary Organisations,05/06/2019,433469,1000.00,SOLWAY FIRTH PARTNERSHIP,A01548,3,2019
Allerdale Borough Council,15405,Supplies & Services,Off-street - Owned,Use of External Printers,12/06/2019,433470,545.00,FIRPRESS PRINTERS,A00063,3,2019
Allerdale Borough Council,10401,Employee Costs,Waste Contract  Operational Costs,Agency Staff Costs,12/06/2019,433471,589.04,ADECCO RECRUITMENT,A00188,3,2019
Allerdale Borough Council,10401,Employee Costs,Waste Contract  Operational Costs,Agency Staff Costs,12/06/2019,433472,589.04,ADECCO RECRUITMENT,A00188,3,2019
Allerdale Borough Council,10401,Employee Costs,Waste Contract  Operational Costs,Agency Staff Costs,12/06/2019,433473,589.04,ADECCO RECRUITMENT,A00188,3,2019
Allerdale Borough Council,10401,Employee Costs,Waste Contract  Operational Costs,Agency Staff Costs,12/06/2019,433474,616.90,ADECCO RECRUITMENT,A00188,3,2019
Allerdale Borough Council,10401,Employee Costs,Waste Contract  Operational Costs,Agency Staff Costs,12/06/2019,433475,501.48,ADECCO RECRUITMENT,A00188,3,2019
Allerdale Borough Council,15301,Supplies & Services,Communications and Marketing,Uniforms,26/06/2019,433476,86.60,K&R BADGES LIMITED,A01328,3,2019
Allerdale Borough Council,15203,Supplies & Services,Members Services,Catering Costs and Consumables,12/06/2019,433477,79.20,AL'S KITCHEN LTD,A00187,3,2019
Allerdale Borough Council,15403,Supplies & Services,Communications and Marketing,Publications and Periodicals,12/06/2019,433479,123.30,P & D NEWSAGENTS,A00237,3,2019
Allerdale Borough Council,15604,Supplies & Services,Corporate Postage and Stationary,Franking Machine refills,12/06/2019,433480,10000.00,FP TELESET,A00428,3,2019
Allerdale Borough Council,15401,Supplies & Services,Corporate Postage and Stationary,General Stationery,26/06/2019,433481,29.81,LYRECO,A00043,3,2019
Allerdale Borough Council,15401,Supplies & Services,Corporate Postage and Stationary,General Stationery,26/06/2019,433482,188.78,LYRECO,A00043,3,2019
Allerdale Borough Council,15401,Supplies & Services,Corporate Postage and Stationary,General Stationery,26/06/2019,433483,28.91,LYRECO,A00043,3,2019
Allerdale Borough Council,15506,Supplies & Services,Reedlands Road Industrial Development,Professional Services,12/06/2019,433484,13725.62,KIER SERVICES MAINTENANCE EAST,C00226,3,2019
Allerdale Borough Council,15506,Supplies & Services,Reedlands Road Industrial Development,Professional Services,12/06/2019,433485,28533.30,KIER SERVICES MAINTENANCE EAST,C00226,3,2019
Allerdale Borough Council,15401,Supplies & Services,Corporate Postage and Stationary,General Stationery,26/06/2019,433486,201.13,LYRECO,A00043,3,2019
Allerdale Borough Council,15401,Supplies & Services,Corporate Postage and Stationary,General Stationery,26/06/2019,433487,341.37,LYRECO,A00043,3,2019
Allerdale Borough Council,15501,Supplies & Services,Planning Policy,Consultants Fees,26/06/2019,433488,3152.15,PROGRAMME OFFICER SOLUTIONS LTD,A01852,3,2019
Allerdale Borough Council,15506,Supplies & Services,Legal Services,Professional Services,12/06/2019,433489,429.60,BEVAN BRITTAN LLP,A02181,3,2019
Allerdale Borough Council,15203,Supplies & Services,Members Services,Catering Costs and Consumables,12/06/2019,433490,840.00,LAKES COLLEGE WEST CUMB,A00093,3,2019
Allerdale Borough Council,12101,Premises,Coastal Protection and Inland Flooding,External Maintenance & Decoration,12/06/2019,433491,1354.00,Redacted information - included personal information ,A02645,3,2019
Allerdale Borough Council,15501,Supplies & Services,Local Development Framework,Consultants Fees,26/06/2019,433492,1901.60,OVE ARUP & PARTNERS LTD,A02417,3,2019
Allerdale Borough Council,10401,Employee Costs,Customer Services Pay Group,Agency Staff Costs,12/06/2019,433493,493.52,ADECCO RECRUITMENT,A00188,3,2019
Allerdale Borough Council,10401,Employee Costs,Customer Services Pay Group,Agency Staff Costs,12/06/2019,433494,87.56,ADECCO RECRUITMENT,A00188,3,2019
Allerdale Borough Council,15501,Supplies & Services,Food Safety & Occupational Health,Consultants Fees,12/06/2019,433495,1050.00,TRACY HOWARD YOUR BEST OPTION,A02376,3,2019
Allerdale Borough Council,15501,Supplies & Services,Building Control - Chargeable,Consultants Fees,12/06/2019,433496,315.00,ASHCROFT DEMOLITION (CUMBRIA) LTD,C00197,3,2019
Allerdale Borough Council,10605,Employee Costs,Members Services,Travel,12/06/2019,433497,180.00,REAYS COACHES LTD,A01280,3,2019
Allerdale Borough Council,15802,Supplies & Services,ICT Infrastructure Costs,Hardware Maintenance,03/07/2019,433498,2420.00,ELITETELE.COM,A02517,3,2019
Allerdale Borough Council,15802,Supplies & Services,ICT Infrastructure Costs,Hardware Maintenance,03/07/2019,433499,5284.00,ELITETELE.COM,A02517,3,2019
Allerdale Borough Council,15802,Supplies & Services,IT Services,Hardware Maintenance,03/07/2019,433500,10786.60,ELITETELE.COM,A02517,3,2019
Allerdale Borough Council,12101,Premises,Corporate Property Maintenance,External Maintenance & Decoration,12/06/2019,433501,854.00,ASHCROFT DEMOLITION (CUMBRIA) LTD,C00197,3,2019
Allerdale Borough Council,15501,Supplies & Services,Building Control - Chargeable,Consultants Fees,12/06/2019,433502,1170.00,ASHCROFT DEMOLITION (CUMBRIA) LTD,C00197,3,2019
Allerdale Borough Council,15501,Supplies & Services,Building Control - Chargeable,Consultants Fees,12/06/2019,433503,319.00,ASHCROFT DEMOLITION (CUMBRIA) LTD,C00197,3,2019
Allerdale Borough Council,12100,Premises,MSCP Maintenance,Budget-External Maintenance & Decoration,19/06/2019,433504,724.04,WYG ENGINEERING LTD,A00155,3,2019
Allerdale Borough Council,16350,Supplies & Services,Mayoral Services,Miscellaneous Expenses,12/06/2019,433505,128.60,JIM DAVIS PHOTOGRAPHY,A00627,3,2019
Allerdale Borough Council,12309,Premises,Multi Storey Car Park Utilities & Maint,Fire and Safety,26/06/2019,433506,170.86,COOK FIRE & SECURITY LTD,A02485,3,2019
Allerdale Borough Council,12309,Premises,Multi Storey Car Park Utilities & Maint,Fire and Safety,26/06/2019,433507,240.00,COOK FIRE & SECURITY LTD,A02485,3,2019
Allerdale Borough Council,20150,Third Party Payments,Public Building Cleaning,General Partnership Service Fees,12/06/2019,433508,280.63,ORIAN SOLUTIONS LTD,A01814,3,2019
Allerdale Borough Council,12201,Premises,Corporate Property Maintenance,Internal Maintenance,12/06/2019,433509,4100.00,STOBBARTS LIMITED,C00204,3,2019
Allerdale Borough Council,12101,Premises,Corporate Property Maintenance,External Maintenance & Decoration,12/06/2019,433510,450.00,THOMAS ARMSTRONG ,C00003,3,2019
Allerdale Borough Council,15505,Supplies & Services,Legal Services,Licences,26/06/2019,433511,250.00,LAWYERS IN LOCAL GOVERNMENT,A01878,3,2019
Allerdale Borough Council,12301,Premises,Corporate Property Maintenance,Security,12/06/2019,433512,874.32,COMPASS SERVICES GROUP,A00839,3,2019
Allerdale Borough Council,16001,Supplies & Services,Banking and Interest,Bank Charges and Fees,12/06/2019,433513,16.18,ALLPAY.NET LIMITED,A00714,3,2019
Allerdale Borough Council,16001,Supplies & Services,Banking and Interest,Bank Charges and Fees,12/06/2019,433514,17.09,ALLPAY.NET LIMITED,A00714,3,2019
Allerdale Borough Council,16001,Supplies & Services,Banking and Interest,Bank Charges and Fees,12/06/2019,433515,17.86,ALLPAY.NET LIMITED,A00714,3,2019
Allerdale Borough Council,16001,Supplies & Services,Banking and Interest,Bank Charges and Fees,12/06/2019,433516,43.14,ALLPAY.NET LIMITED,A00714,3,2019
Allerdale Borough Council,16001,Supplies & Services,Banking and Interest,Bank Charges and Fees,12/06/2019,433517,26.24,ALLPAY.NET LIMITED,A00714,3,2019
Allerdale Borough Council,16001,Supplies & Services,Banking and Interest,Bank Charges and Fees,12/06/2019,433518,33.08,ALLPAY.NET LIMITED,A00714,3,2019
Allerdale Borough Council,16001,Supplies & Services,Banking and Interest,Bank Charges and Fees,12/06/2019,433519,50.09,ALLPAY.NET LIMITED,A00714,3,2019
Allerdale Borough Council,16001,Supplies & Services,Banking and Interest,Bank Charges and Fees,12/06/2019,433520,1519.75,ALLPAY.NET LIMITED,A00714,3,2019
Allerdale Borough Council,15904,Supplies & Services,Members Services,Training,12/06/2019,433521,113.00,AL'S KITCHEN LTD,A00187,3,2019
Allerdale Borough Council,16001,Supplies & Services,Banking and Interest,Bank Charges and Fees,12/06/2019,433522,16.18,ALLPAY.NET LIMITED,A00714,3,2019
Allerdale Borough Council,16001,Supplies & Services,Banking and Interest,Bank Charges and Fees,12/06/2019,433523,16.18,ALLPAY.NET LIMITED,A00714,3,2019
Allerdale Borough Council,10601,Employee Costs,Training,External Courses & Seminar Fees,12/06/2019,433524,2000.00,BIP SOLUTIONS,A01964,3,2019
Allerdale Borough Council,15101,Supplies & Services,Members Services,Equipment Costs,12/06/2019,433525,105.00,SHORTRIDGE LTD,A00265,3,2019
Allerdale Borough Council,33112,Income,Planning and Development,Planning Fees Income,12/06/2019,433526,62.00,Redacted information - included personal information ,M01648,3,2019
Allerdale Borough Council,16350,Supplies & Services,Homelessness,Miscellaneous Expenses,12/06/2019,433527,350.00,HOME GROUP LTD,A00423,3,2019
Allerdale Borough Council,21150,Transfer Payments,Shop Front Improvements,General Grants,12/06/2019,433528,855.00,Redacted information - included personal information ,M01649,3,2019
Allerdale Borough Council,21150,Transfer Payments,Shop Front Improvements,General Grants,12/06/2019,433529,495.00,Redacted information - included personal information ,M01605,3,2019
Allerdale Borough Council,33113,Income,Building Control - Chargeable,Building Control Fees Income,12/06/2019,433530,429.17,Redacted information - included personal information ,M01650,3,2019
Allerdale Borough Council,20150,Third Party Payments,Managed Car Parks,General Partnership Service Fees,12/06/2019,433531,23533.05,KESWICK MINISTRIES,A02390,3,2019
Allerdale Borough Council,15804,Supplies & Services,IT Services,Computer Data Lines B.T.,12/06/2019,433532,45.00,VAIONI GROUP LTD,A02471,3,2019
Allerdale Borough Council,15811,Supplies & Services,IT Services,Software Maintenance,12/06/2019,433533,98.91,PHOENIX SOFTWARE LTD,A00229,3,2019
Allerdale Borough Council,16350,Supplies & Services,Chief Executive,Miscellaneous Expenses,12/06/2019,433534,42.00,FIRPRESS PRINTERS,A00063,3,2019
Allerdale Borough Council,12301,Premises,Corporate Property Maintenance,Security,12/06/2019,433535,31.00,COMPASS SERVICES GROUP,A00839,3,2019
Allerdale Borough Council,15403,Supplies & Services,Mayoral Services,Publications and Periodicals,12/06/2019,433536,14.40,P & D NEWSAGENTS,A00237,3,2019
Allerdale Borough Council,15101,Supplies & Services,Elections,Equipment Costs,26/06/2019,433537,263.67,NEOPOST LIMITED,A00455,3,2019
Allerdale Borough Council,15811,Supplies & Services,IT Services,Software Maintenance,17/06/2019,433538,317.00,SAGE (UK) LTD ,A01911,3,2019
Allerdale Borough Council,14201,Transport,Mayoral Services,Public Transport,12/06/2019,433539,170.00,DJH SILLOTH LTD T/A SOLWAY PRIVATE HIRE,M00890,3,2019
Allerdale Borough Council,15804,Supplies & Services,IT Services,Computer Data Lines B.T.,26/06/2019,433540,45.00,VAIONI GROUP LTD,A02471,3,2019
Allerdale Borough Council,10401,Employee Costs,Environmental Protection,Agency Staff Costs,12/06/2019,433541,937.50,G2 RECRUITMENT SOLUTIONS LTD,C00198,3,2019
Allerdale Borough Council,12101,Premises,Corporate Property Maintenance,External Maintenance & Decoration,19/06/2019,433542,697.00,ASHCROFT DEMOLITION (CUMBRIA) LTD,C00197,3,2019
Allerdale Borough Council,12101,Premises,Corporate Property Maintenance,External Maintenance & Decoration,19/06/2019,433543,1054.00,ASHCROFT DEMOLITION (CUMBRIA) LTD,C00197,3,2019
Allerdale Borough Council,12101,Premises,Corporate Property Maintenance,External Maintenance & Decoration,19/06/2019,433544,3057.00,ASHCROFT DEMOLITION (CUMBRIA) LTD,C00197,3,2019
Allerdale Borough Council,53101,Capital Expenditure,Replacement Parking Meters,Purchase of Fixed Plant & Equip Capital,03/07/2019,433545,10625.00,KIEDIS LTD,A02658,3,2019
Allerdale Borough Council,50000,Capital Expenditure,Brow Top Enhancements,Capital Programme,12/06/2019,433546,14388.17,TOMAN PAVING LTD,C00223,3,2019
Allerdale Borough Council,15501,Supplies & Services,Solway Coast AONB Core Funding,Consultants Fees,03/07/2019,433547,3100.00,HERITAGE NATURALLY,A02648,3,2019
Allerdale Borough Council,12101,Premises,Corporate Property Maintenance,External Maintenance & Decoration,19/06/2019,433548,650.00,ASHCROFT DEMOLITION (CUMBRIA) LTD,C00197,3,2019
Allerdale Borough Council,12101,Premises,Corporate Property Maintenance,External Maintenance & Decoration,19/06/2019,433549,100.00,ASHCROFT DEMOLITION (CUMBRIA) LTD,C00197,3,2019
Allerdale Borough Council,12101,Premises,Car Parks Inspection & Maintenance,External Maintenance & Decoration,19/06/2019,433550,1360.00,ASHCROFT DEMOLITION (CUMBRIA) LTD,C00197,3,2019
Allerdale Borough Council,15808,Supplies & Services,Solway Coast AONB Core Funding,Computer Consumables,,433551,485.36,BARCLAYCARD COMMERCIAL,X00207,3,2019
Allerdale Borough Council,16150,Supplies & Services,Solway Coast AONB Core Funding,General Promotions,,433552,57.18,BARCLAYCARD COMMERCIAL,X00207,3,2019
Allerdale Borough Council,15813,Supplies & Services,IT Services,Software Miscellaneous,12/06/2019,433553,1100.00,MICHAEL CARDER LTD,A02493,3,2019
Allerdale Borough Council,15506,Supplies & Services,Legal Services,Professional Services,12/06/2019,433554,121.50,FREETHS LLP,A01821,3,2019
Allerdale Borough Council,15803,Supplies & Services,IT Services,Hardware Purchase,12/06/2019,433555,552.60,JJ GROUP (CONTRACTING) LTD,C00038,3,2019
Allerdale Borough Council,15405,Supplies & Services,Solway Coast AONB Core Funding,Use of External Printers,19/06/2019,433556,260.00,FIRPRESS PRINTERS,A00063,3,2019
Allerdale Borough Council,12101,Premises,Corporate Property Maintenance,External Maintenance & Decoration,19/06/2019,433557,120.00,Redacted information - included personal information ,A00561,3,2019
Allerdale Borough Council,12305,Premises,Corporate Property Maintenance,Inspections and Services,12/06/2019,433558,191.10,ORIAN SOLUTIONS LTD,A01814,3,2019
Allerdale Borough Council,10502,Employee Costs,Human Resources Pay Group,Interview Expenses,12/06/2019,433559,300.00,SUNDERLAND CITY COUNCIL,A00979,3,2019
Allerdale Borough Council,15101,Supplies & Services,European Election 2019,Equipment Costs,19/06/2019,433560,308.50,RHYTHM AV LTD,A01139,3,2019
Allerdale Borough Council,12101,Premises,Keswick Public Toliets,External Maintenance & Decoration,12/06/2019,433561,823.00,Redacted information - included personal information ,C00008,3,2019
Allerdale Borough Council,15501,Supplies & Services,Estates,Consultants Fees,12/06/2019,433562,600.00,GERRY MARTIN ASSOCIATES LTD,A02665,3,2019
Allerdale Borough Council,16101,Supplies & Services,Planning and Development,Statutory Notices,26/06/2019,433563,425.25,NEWSQUEST MEDIA GROUP,A02348,3,2019
Allerdale Borough Council,53103,Not Applicable,Trade Waste,Purchase of Bins,12/06/2019,433564,22816.50,STORM ENVIRONMENTAL LIMITED,A02444,3,2019
Allerdale Borough Council,15501,Supplies & Services,Off-street - Owned,Consultants Fees,19/06/2019,433565,387.50,STEVE THOMPSON CONSULTING LTD,A02617,3,2019
Allerdale Borough Council,16101,Supplies & Services,Off-street - Owned,Statutory Notices,19/06/2019,433566,299.25,NEWSQUEST MEDIA GROUP,A02348,3,2019
Allerdale Borough Council,15501,Supplies & Services,Waste Contract  Operational Costs,Consultants Fees,12/06/2019,433567,12025.74,BEVAN BRITTAN LLP,A02181,3,2019
Allerdale Borough Council,16350,Supplies & Services,Off-street - Owned,Miscellaneous Expenses,26/06/2019,433568,1101.60,3C PAYMENT LIMITED,A02382,3,2019
Allerdale Borough Council,15101,Supplies & Services,Off-street - Owned,Equipment Costs,19/06/2019,433569,120.77,RELIANCE HIGH-TECH LTD,C00123,3,2019
Allerdale Borough Council,15501,Supplies & Services,Street Cleansing,Consultants Fees,12/06/2019,433570,50.00,MICHAEL DOUGLAS AUTO SALVAGE,A00078,3,2019
Allerdale Borough Council,15101,Supplies & Services,Multi-storey Car Park,Equipment Costs,26/06/2019,433571,2392.50,METRIC GROUP LTD,A00568,3,2019
Allerdale Borough Council,15101,Supplies & Services,Off-street - Owned,Equipment Costs,26/06/2019,433572,560.00,NAGELS UK LTD,A01182,3,2019
Allerdale Borough Council,10401,Employee Costs,Building Control Recruitment,Agency Staff Costs,03/07/2019,433573,6250.05,THE OYSTER PARTNERSHIP LTD,C00118,3,2019
Allerdale Borough Council,12305,Premises,Corporate Property Maintenance,Inspections and Services,12/06/2019,433574,199.79,ORIAN SOLUTIONS LTD,A01814,3,2019
Allerdale Borough Council,16302,Supplies & Services,European Election 2019,Room Hire,12/06/2019,433575,197.50,SOLWAY PLAIN FUTURES LTD,A01194,3,2019
Allerdale Borough Council,10401,Employee Costs,Revenue,Agency Staff Costs,12/06/2019,433576,1650.00,G2 RECRUITMENT SOLUTIONS LTD,C00198,3,2019
Allerdale Borough Council,15103,Supplies & Services,European Election 2019,Purchase of Materials,19/06/2019,433577,808.50,PAKFLATT (UK) LTD,A00810,3,2019
Allerdale Borough Council,14202,Transport,Chief Executive,Hire Car and petrol,12/06/2019,433578,96.97,ENTERPRISE RENT A CAR,A01367,3,2019
Allerdale Borough Council,14104,Transport,Property Services Pay Group,Repairs & Maintenance,26/06/2019,433579,816.43,MICHELDEVER TYRE SERVICES T/A P&R AUTOCENTRE,A02368,3,2019
Allerdale Borough Council,14103,Transport,Insurances,Insurance Council Vehicles,12/06/2019,433580,13342.56,JELF INSURANCE BROKERS LTD,A02549,3,2019
Allerdale Borough Council,15501,Supplies & Services,Local Development Framework,Consultants Fees,26/06/2019,433581,5466.00,OVE ARUP & PARTNERS LTD,A02417,3,2019
Allerdale Borough Council,15516,Supplies & Services,Insurances,Insurance Services,12/06/2019,433582,7969.39,JELF INSURANCE BROKERS LTD,A02549,3,2019
Allerdale Borough Council,15516,Supplies & Services,Insurances,Insurance Services,12/06/2019,433583,9800.00,JELF INSURANCE BROKERS LTD,A02549,3,2019
Allerdale Borough Council,15516,Supplies & Services,Insurances,Insurance Services,12/06/2019,433584,1540.00,JELF INSURANCE BROKERS LTD,A02549,3,2019
Allerdale Borough Council,15516,Supplies & Services,Insurances,Insurance Services,12/06/2019,433585,1284.79,JELF INSURANCE BROKERS LTD,A02549,3,2019
Allerdale Borough Council,15601,Supplies & Services,2019 Elections,Postage,12/06/2019,433586,1963.15,ROYAL MAIL LETTERS,X00021,3,2019
Allerdale Borough Council,15601,Supplies & Services,2019 Elections,Postage,12/06/2019,433587,2254.17,ROYAL MAIL LETTERS,X00021,3,2019
Allerdale Borough Council,15601,Supplies & Services,Electoral Registration,Postage,12/06/2019,433588,34.17,ROYAL MAIL LETTERS,X00021,3,2019
Allerdale Borough Council,12402,Premises,Corporate Property Maintenance,Electricity,12/06/2019,433589,7.93,N POWER ,X00015,3,2019
Allerdale Borough Council,12402,Premises,Corporate Property Maintenance,Electricity,12/06/2019,433590,165.67,N POWER ,X00015,3,2019
Allerdale Borough Council,12402,Premises,Corporate Property Maintenance,Electricity,12/06/2019,433591,95.40,N POWER ,X00015,3,2019
Allerdale Borough Council,12402,Premises,Corporate Property Maintenance,Electricity,12/06/2019,433592,6.98,N POWER ,X00015,3,2019
Allerdale Borough Council,12402,Premises,Corporate Property Maintenance,Electricity,12/06/2019,433593,8.34,N POWER ,X00015,3,2019
Allerdale Borough Council,12402,Premises,Public Convenience Cleaning,Electricity,12/06/2019,433594,17.92,N POWER ,X00015,3,2019
Allerdale Borough Council,12402,Premises,Public Convenience Cleaning,Electricity,12/06/2019,433595,23.54,N POWER ,X00015,3,2019
Allerdale Borough Council,12402,Premises,Corporate Property Maintenance,Electricity,12/06/2019,433596,6.98,N POWER ,X00015,3,2019
Allerdale Borough Council,12402,Premises,Public Convenience Cleaning,Electricity,12/06/2019,433597,16.70,N POWER ,X00015,3,2019
Allerdale Borough Council,12402,Premises,Public Convenience Cleaning,Electricity,12/06/2019,433598,86.63,N POWER ,X00015,3,2019
Allerdale Borough Council,12501,Premises,Food Safety & Occupational Health,NNDR and Other Occupancy Charges,12/06/2019,433599,687.13,ALLERDALE ,A00342,3,2019
Allerdale Borough Council,12501,Premises,Food Safety & Occupational Health,NNDR and Other Occupancy Charges,12/06/2019,433600,1248.00,ALLERDALE ,A00342,3,2019
Allerdale Borough Council,12501,Premises,Food Safety & Occupational Health,NNDR and Other Occupancy Charges,12/06/2019,433601,1276.60,ALLERDALE ,A00342,3,2019
Allerdale Borough Council,15601,Supplies & Services,Food Safety & Occupational Health,Postage,12/06/2019,433602,11.00,ROYAL MAIL LETTERS,X00021,3,2019
Allerdale Borough Council,12403,Premises,Corporate Property Maintenance,Gas,12/06/2019,433603,366.38,CORONA ENERGY,X00003,3,2019
Allerdale Borough Council,12403,Premises,Corporate Property Maintenance,Gas,12/06/2019,433604,66.07,CORONA ENERGY,X00003,3,2019
Allerdale Borough Council,12403,Premises,Corporate Property Maintenance,Gas,12/06/2019,433605,182.08,CORONA ENERGY,X00003,3,2019
Allerdale Borough Council,12403,Premises,Corporate Property Maintenance,Gas,12/06/2019,433606,299.47,CORONA ENERGY,X00003,3,2019
Allerdale Borough Council,12403,Premises,Corporate Property Maintenance,Gas,12/06/2019,433607,377.15,CORONA ENERGY,X00003,3,2019
Allerdale Borough Council,12403,Premises,Corporate Property Maintenance,Gas,12/06/2019,433608,644.31,CORONA ENERGY,X00003,3,2019
Allerdale Borough Council,12403,Premises,Corporate Property Maintenance,Gas,12/06/2019,433609,263.80,CORONA ENERGY,X00003,3,2019
Allerdale Borough Council,12402,Premises,Corporate Property Maintenance,Electricity,12/06/2019,433610,586.38,N POWER,X00015,3,2019
Allerdale Borough Council,12402,Premises,Corporate Property Maintenance,Electricity,12/06/2019,433611,1762.50,N POWER,X00015,3,2019
Allerdale Borough Council,12402,Premises,Multi Storey Car Park Utilities & Maint,Electricity,12/06/2019,433612,1724.94,N POWER,X00015,3,2019
Allerdale Borough Council,12402,Premises,Corporate Property Maintenance,Electricity,12/06/2019,433613,120.16,N POWER,X00015,3,2019
Allerdale Borough Council,12402,Premises,Corporate Property Maintenance,Electricity,12/06/2019,433614,12.17,N POWER,X00015,3,2019
Allerdale Borough Council,12402,Premises,Corporate Property Maintenance,Electricity,12/06/2019,433615,29.28,N POWER,X00015,3,2019
Allerdale Borough Council,12402,Premises,Multi Storey Car Park Utilities & Maint,Electricity,12/06/2019,433616,10.54,N POWER,X00015,3,2019
Allerdale Borough Council,12402,Premises,Corporate Property Maintenance,Electricity,12/06/2019,433617,1078.11,N POWER,X00015,3,2019
Allerdale Borough Council,12402,Premises,Corporate Property Maintenance,Electricity,12/06/2019,433618,5.92,N POWER,X00015,3,2019
Allerdale Borough Council,12402,Premises,Public Convenience Cleaning,Electricity,12/06/2019,433619,6.98,N POWER,X00015,3,2019
Allerdale Borough Council,12402,Premises,Car Parks Inspection & Maintenance,Electricity,12/06/2019,433620,14.36,N POWER,X00015,3,2019
Allerdale Borough Council,12402,Premises,Corporate Property Maintenance,Electricity,12/06/2019,433621,41.84,N POWER,X00015,3,2019
Allerdale Borough Council,12402,Premises,Public Convenience Cleaning,Electricity,12/06/2019,433622,6.98,N POWER,X00015,3,2019
Allerdale Borough Council,12402,Premises,Corporate Property Maintenance,Electricity,12/06/2019,433623,3970.20,N POWER,X00015,3,2019
Allerdale Borough Council,10110,Employee Costs,Commissioning Support Pay Group,Salary Sacrifice,12/06/2019,433624,1843.40,TUSKERDIRECT LTD,A02186,3,2019
Allerdale Borough Council,15804,Supplies & Services,IT Services,Computer Data Lines B.T.,26/06/2019,433625,870.63,VODAFONE,A00934,3,2019
Allerdale Borough Council,12402,Premises,Footways,Electricity,12/06/2019,433626,6149.79,N POWER ,X00015,3,2019
Allerdale Borough Council,12402,Premises,Car Parks Inspection & Maintenance,Electricity,12/06/2019,433627,105.90,N POWER ,X00015,3,2019
Allerdale Borough Council,15704,Supplies & Services,IT Services,Mobile Phones,12/06/2019,433628,48.67,VODAFONE,A00551,3,2019
Allerdale Borough Council,15501,Supplies & Services,Revenue,Consultants Fees,26/06/2019,433629,75.00,JACOBS (BAILIFFS),A00495,3,2019
Allerdale Borough Council,12402,Premises,Footways,Electricity,12/06/2019,433630,6354.79,N POWER ,X00015,3,2019
Allerdale Borough Council,12402,Premises,Car Parks Inspection & Maintenance,Electricity,12/06/2019,433631,109.45,N POWER ,X00015,3,2019
Allerdale Borough Council,15203,Supplies & Services,Solway Coast AONB Core Funding,Catering Costs and Consumables,12/06/2019,433632,124.38,ALLERDALE BOROUGH COUNCIL,X00216,3,2019
Allerdale Borough Council,15601,Supplies & Services,Corporate Postage and Stationary,Postage,12/06/2019,433633,865.41,UK MAIL GROUP PLC,A02371,3,2019
Allerdale Borough Council,15601,Supplies & Services,Corporate Postage and Stationary,Postage,12/06/2019,433634,563.43,UK MAIL GROUP PLC,A02371,3,2019
Allerdale Borough Council,15601,Supplies & Services,Corporate Postage and Stationary,Postage,12/06/2019,433635,1156.86,UK MAIL GROUP PLC,A02371,3,2019
Allerdale Borough Council,15101,Supplies & Services,Homelessness,Equipment Costs,,433636,76.63,BARCLAYCARD COMMERCIAL ,X00207,3,2019
Allerdale Borough Council,33112,Income,Planning and Development,Planning Fees Income,12/06/2019,433637,41.20,Redacted information - included personal information ,M01651,3,2019
Allerdale Borough Council,10401,Employee Costs,Waste Contract  Operational Costs,Agency Staff Costs,12/06/2019,433638,589.04,ADECCO RECRUITMENT,A00188,3,2019
Allerdale Borough Council,10401,Employee Costs,Waste Contract  Operational Costs,Agency Staff Costs,12/06/2019,433639,485.56,ADECCO RECRUITMENT,A00188,3,2019
Allerdale Borough Council,10401,Employee Costs,Waste Contract  Operational Costs,Agency Staff Costs,12/06/2019,433640,374.12,ADECCO RECRUITMENT,A00188,3,2019
Allerdale Borough Council,10401,Employee Costs,Waste Contract  Operational Costs,Agency Staff Costs,12/06/2019,433641,589.04,ADECCO RECRUITMENT,A00188,3,2019
Allerdale Borough Council,14150,Transport,Gates Travel,General-Council Vehicles (Non-Capital),26/06/2019,433642,1080.95,GATES TRAVEL,A01525,3,2019
Allerdale Borough Council,26000,Earmarked Reserves,Transfer of Land Charges Data,Budget-Expd funded from Reserve,12/06/2019,433643,469.64,ADECCO RECRUITMENT,A00188,3,2019
Allerdale Borough Council,26000,Earmarked Reserves,Transfer of Land Charges Data,Budget-Expd funded from Reserve,12/06/2019,433644,358.20,ADECCO RECRUITMENT,A00188,3,2019
Allerdale Borough Council,26000,Earmarked Reserves,Licensing Service,Budget-Expd funded from Reserve,12/06/2019,433645,509.44,ADECCO RECRUITMENT,A00188,3,2019
Allerdale Borough Council,16350,Supplies & Services,Mayor's Fund,Miscellaneous Expenses,19/06/2019,433646,2250.00,ALLERDALE COSC,M00991,3,2019
Allerdale Borough Council,16350,Supplies & Services,Mayor's Fund,Miscellaneous Expenses,19/06/2019,433647,2250.00,AMYS CARE,M01652,3,2019
Allerdale Borough Council,21150,Transfer Payments,Festivals & Events,General Grants,19/06/2019,433648,1500.00,SILLOTH ON SOLWAY ROTARY CLUB,M01653,3,2019
Allerdale Borough Council,21150,Transfer Payments,Festivals & Events,General Grants,19/06/2019,433649,500.00,CARNEGIE SINGERS,M00360,3,2019
Allerdale Borough Council,15506,Supplies & Services,Environmental Protection,Professional Services,19/06/2019,433650,250.00,ACOUSTIC1 LIMITED,A02437,3,2019
Allerdale Borough Council,12303,Premises,Corporate Property Maintenance,Window Cleaning,19/06/2019,433651,385.00,BORDERBRITE LTD,C00155,3,2019
Allerdale Borough Council,15506,Supplies & Services,Assistance - Housing Services,Professional Services,19/06/2019,433652,2744.79,CUMBRIA CC,A00066,3,2019
Allerdale Borough Council,15506,Supplies & Services,Legal Services,Professional Services,19/06/2019,433653,175.00,BROCKBANK SOLICITORS,A01761,3,2019
Allerdale Borough Council,15506,Supplies & Services,Legal Services,Professional Services,19/06/2019,433654,175.00,BROCKBANK SOLICITORS,A01761,3,2019
Allerdale Borough Council,16100,Supplies & Services,Communications and Marketing,Budget-Advertising and Promotions,19/06/2019,433655,160.00,EWANRIGG LOCAL TRUST,M01144,3,2019
Allerdale Borough Council,15505,Supplies & Services,Planning and Development,Licences,26/06/2019,433656,34.44,CENTREMAPS,A00512,3,2019
Allerdale Borough Council,15811,Supplies & Services,ICT Infrastructure Costs,Software Maintenance,03/07/2019,433657,210.75,ELITETELE.COM,A02517,3,2019
Allerdale Borough Council,15101,Supplies & Services,Public Building Cleaning,Equipment Costs,19/06/2019,433658,76.00,WF HYGIENE & CLEANING SUPPLIES,A01794,3,2019
Allerdale Borough Council,15803,Supplies & Services,IT Services,Hardware Purchase,19/06/2019,433659,780.96,STORM TECHNOLOGIES,A01018,3,2019
Allerdale Borough Council,10401,Employee Costs,Customer Services Pay Group,Agency Staff Costs,19/06/2019,433660,350.24,ADECCO RECRUITMENT,A00188,3,2019
Allerdale Borough Council,10401,Employee Costs,Customer Services Pay Group,Agency Staff Costs,19/06/2019,433661,362.18,ADECCO RECRUITMENT,A00188,3,2019
Allerdale Borough Council,15103,Supplies & Services,Solway Coast AONB Core Funding,Purchase of Materials,19/06/2019,433662,60.00,FIRPRESS PRINTERS,A00063,3,2019
Allerdale Borough Council,15100,Supplies & Services,Health and Safety,"Budget-Equipment, Furniture & Materials",03/07/2019,433663,56.07,POSTURITE (UK) LTD,A00336,3,2019
Allerdale Borough Council,15506,Supplies & Services,Legal Services,Professional Services,19/06/2019,433664,1500.00,KINGS CHAMBERS,A00348,3,2019
Allerdale Borough Council,10502,Employee Costs,Human Resources Pay Group,Interview Expenses,19/06/2019,433665,300.00,SUNDERLAND CITY COUNCIL,A00979,3,2019
Allerdale Borough Council,16302,Supplies & Services,Maryport Promenade,Room Hire,19/06/2019,433666,250.00,HER CITI,A00441,3,2019
Allerdale Borough Council,15904,Supplies & Services,Members Services,Training,19/06/2019,433667,84.49,NATIONAL PEN LTD,A00469,3,2019
Allerdale Borough Council,16300,Supplies & Services,Tourism Incentive,Budget-Miscellaneous,19/06/2019,433668,2805.00,CUMBRIA TOURISM,A00477,3,2019
Allerdale Borough Council,15506,Supplies & Services,Legal Services,Professional Services,03/07/2019,433669,7970.00,FREETHS LLP,A01821,3,2019
Allerdale Borough Council,12405,Premises,Homelessness,Rentals and Lease Charges,19/06/2019,433670,1368.44,HOME GROUP LTD,A00423,3,2019
Allerdale Borough Council,12101,Premises,Car Parks Inspection & Maintenance,External Maintenance & Decoration,19/06/2019,433671,808.00,Redacted information - included personal information ,A00176,3,2019
Allerdale Borough Council,33112,Income,Planning and Development,Planning Fees Income,19/06/2019,433672,34.00,PORTAL PLAN QUEST LTD,M01566,3,2019
Allerdale Borough Council,16102,Supplies & Services,Social Impact Investment Fund,Regeneration Initiatives,26/06/2019,433673,4000.00,WORKINGTON TOWN RLFC,A01348,3,2019
Allerdale Borough Council,21150,Transfer Payments,Corporate Priorities,General Grants,19/06/2019,433674,1382.40,SOUTH WORKINGTON YOUTH PARTNERSHIP,X00158,3,2019
Allerdale Borough Council,20150,Third Party Payments,Festivals & Events,General Partnership Service Fees,19/06/2019,433675,20000.00,LAKESMAN EVENTS LTD,A02660,3,2019
Allerdale Borough Council,10601,Employee Costs,Training,External Courses & Seminar Fees,03/07/2019,433676,100.00,STAND & DELIVER LIMITED,A01575,3,2019
Allerdale Borough Council,50000,Capital Expenditure,Brow Top Enhancements,Capital Programme,03/07/2019,433677,950.00,LEEMING ASSOCIATES,A02264,3,2019
Allerdale Borough Council,20300,Third Party Payments,Maryport Wave,Budget-Contract Services,19/06/2019,433678,15798.75,GREENWICH LEISURE LTD (PREV CARLISLE LEISURE),A00136,3,2019
Allerdale Borough Council,20305,Third Party Payments,Sports & Leisure Centres,Contract Services-Leisure Centres,19/06/2019,433679,52169.75,GREENWICH LEISURE LTD (PREV CARLISLE LEISURE),A00136,3,2019
Allerdale Borough Council,10401,Employee Costs,Waste Contract  Operational Costs,Agency Staff Costs,19/06/2019,433680,481.58,ADECCO RECRUITMENT,A00188,3,2019
Allerdale Borough Council,10401,Employee Costs,Waste Contract  Operational Costs,Agency Staff Costs,19/06/2019,433681,597.00,ADECCO RECRUITMENT,A00188,3,2019
Allerdale Borough Council,10401,Employee Costs,Waste Contract  Operational Costs,Agency Staff Costs,19/06/2019,433682,501.48,ADECCO RECRUITMENT,A00188,3,2019
Allerdale Borough Council,10401,Employee Costs,Waste Contract  Operational Costs,Agency Staff Costs,19/06/2019,433683,477.60,ADECCO RECRUITMENT,A00188,3,2019
Allerdale Borough Council,10401,Employee Costs,Waste Contract  Operational Costs,Agency Staff Costs,19/06/2019,433684,501.48,ADECCO RECRUITMENT,A00188,3,2019
Allerdale Borough Council,10401,Employee Costs,Waste Contract  Operational Costs,Agency Staff Costs,19/06/2019,433685,581.08,ADECCO RECRUITMENT,A00188,3,2019
Allerdale Borough Council,10401,Employee Costs,Waste Contract  Operational Costs,Agency Staff Costs,19/06/2019,433686,238.80,ADECCO RECRUITMENT,A00188,3,2019
Allerdale Borough Council,15506,Supplies & Services,Estates,Professional Services,19/06/2019,433687,800.00,WALTON GOODLAND LTD,A01226,3,2019
Allerdale Borough Council,16003,Supplies & Services,Off-street - Owned,Security of Cash Movements,26/06/2019,433688,766.96,G4S CASH SOLUTIONS (UK) LTD,A02421,3,2019
Allerdale Borough Council,15201,Supplies & Services,Chief Executive,Entertainment Of Visitors,19/06/2019,433689,34.00,CARNEGIE WORKINGTON LTD (CAFE),A02616,3,2019
Allerdale Borough Council,12301,Premises,European Election 2019,Security,26/06/2019,433690,621.00,G4S SECURE SOLUTIONS,A01597,3,2019
Allerdale Borough Council,26000,Earmarked Reserves,Licensing Service,Budget-Expd funded from Reserve,19/06/2019,433691,620.88,ADECCO RECRUITMENT,A00188,3,2019
Allerdale Borough Council,15601,Supplies & Services,Corporate Postage and Stationary,Postage,19/06/2019,433692,607.53,UK MAIL GROUP PLC,A02371,3,2019
Allerdale Borough Council,16150,Supplies & Services,Solway Coast AONB Core Funding,General Promotions,19/06/2019,433693,113.31,ORIAN SOLUTIONS LTD,A01814,3,2019
Allerdale Borough Council,54105,Capital Expenditure,Disabled Facilities Grants,Grants  Private Individuals (Capital),19/06/2019,433694,12000.00,Redacted information - included personal information ,X00196,3,2019
Allerdale Borough Council,54105,Capital Expenditure,Disabled Facilities Grants,Grants  Private Individuals (Capital),19/06/2019,433695,2896.51,PARTNERSHIP IN PROPERTY MANAGEMENT LTD,X00120,3,2019
Allerdale Borough Council,54105,Capital Expenditure,Disabled Facilities Grants,Grants  Private Individuals (Capital),19/06/2019,433696,3323.84,PARTNERSHIP IN PROPERTY MANAGEMENT LTD,X00120,3,2019
Allerdale Borough Council,54105,Capital Expenditure,Disabled Facilities Grants,Grants  Private Individuals (Capital),19/06/2019,433697,2868.36,PARTNERSHIP IN PROPERTY MANAGEMENT LTD,X00120,3,2019
Allerdale Borough Council,54105,Capital Expenditure,Disabled Facilities Grants,Grants  Private Individuals (Capital),19/06/2019,433698,8602.80,PARTNERSHIP IN PROPERTY MANAGEMENT LTD,X00120,3,2019
Allerdale Borough Council,54105,Capital Expenditure,Disabled Facilities Grants,Grants  Private Individuals (Capital),19/06/2019,433699,5853.97,L.E.A. BUILDING SERVICES LTD,X00264,3,2019
Allerdale Borough Council,54105,Capital Expenditure,Disabled Facilities Grants,Grants  Private Individuals (Capital),19/06/2019,433700,5639.07,L.E.A. BUILDING SERVICES LTD,X00264,3,2019
Allerdale Borough Council,54105,Capital Expenditure,Disabled Facilities Grants,Grants  Private Individuals (Capital),19/06/2019,433701,2375.00,HANDICARE ACCESSIBILITY LTD,X00211,3,2019
Allerdale Borough Council,54105,Capital Expenditure,Disabled Facilities Grants,Grants  Private Individuals (Capital),19/06/2019,433702,10210.25,MAYSON BROS LTD,X00132,3,2019
Allerdale Borough Council,54105,Capital Expenditure,Discretionary Grants,Grants  Private Individuals (Capital),19/06/2019,433703,9337.20,FEARON BUILDERS,C00069,3,2019
Allerdale Borough Council,15811,Supplies & Services,IT Services,Software Maintenance,,433704,500.00,BARCLAYCARD COMMERCIAL,X00207,3,2019
Allerdale Borough Council,15508,Supplies & Services,Bereavement Services,Subscriptions,19/06/2019,433705,455.00,INSTITUTE OF CEMETERY & CREMATORIUM MANAGEMENT,A00958,3,2019
Allerdale Borough Council,15101,Supplies & Services,Customer Services Pay Group,Equipment Costs,,433706,414.98,BARCLAYCARD COMMERCIAL ,X00207,3,2019
Allerdale Borough Council,15401,Supplies & Services,Building Control - Non-Chargeable,General Stationery,,433707,34.90,BARCLAYCARD COMMERCIAL ,X00207,3,2019
Allerdale Borough Council,15405,Supplies & Services,Trade Waste,Use of External Printers,19/06/2019,433708,360.00,FIRPRESS PRINTERS,A00063,3,2019
Allerdale Borough Council,15405,Supplies & Services,Trade Waste,Use of External Printers,19/06/2019,433709,360.00,FIRPRESS PRINTERS,A00063,3,2019
Allerdale Borough Council,15405,Supplies & Services,Trade Waste,Use of External Printers,19/06/2019,433710,360.00,FIRPRESS PRINTERS,A00063,3,2019
Allerdale Borough Council,53103,Not Applicable,Recycling,Purchase of Bins,19/06/2019,433711,6663.32,CRAEMER UK LTD,A01016,3,2019
Allerdale Borough Council,53103,Not Applicable,Recycling,Purchase of Bins,19/06/2019,433712,6663.32,CRAEMER UK LTD,A01016,3,2019
Allerdale Borough Council,15402,Supplies & Services,Multi-functional Printers,Photocopier Charges,19/06/2019,433713,47.61,KONICA MINOLTA BUSINESS SOLUTIONS UK LTD,A01556,3,2019
Allerdale Borough Council,15403,Supplies & Services,Chief Executive,Publications and Periodicals,19/06/2019,433714,14.40,P & D NEWSAGENTS,A00237,3,2019
Allerdale Borough Council,15402,Supplies & Services,Multi-functional Printers,Photocopier Charges,26/06/2019,433715,181.32,KONICA MINOLTA BUSINESS SOLUTIONS UK LTD,A01556,3,2019
Allerdale Borough Council,15506,Supplies & Services,Reedlands Road Industrial Development,Professional Services,26/06/2019,433716,6579.90,PERFECT CIRCLE JV LTD,A02478,3,2019
Allerdale Borough Council,15101,Supplies & Services,Off-street - Owned,Equipment Costs,26/06/2019,433717,4644.00,METRIC GROUP LTD,A00568,3,2019
Allerdale Borough Council,15101,Supplies & Services,Off-street - Owned,Equipment Costs,26/06/2019,433718,163.50,METRIC GROUP LTD,A00568,3,2019
Allerdale Borough Council,53103,Not Applicable,Domestic Waste,Purchase of Bins,26/06/2019,433719,12896.76,CRAEMER UK LTD,A01016,3,2019
Allerdale Borough Council,53103,Not Applicable,Recycling,Purchase of Bins,26/06/2019,433720,12896.76,CRAEMER UK LTD,A01016,3,2019
Allerdale Borough Council,15101,Supplies & Services,Members Services,Equipment Costs,19/06/2019,433721,433.00,RHYTHM AV LTD,A01139,3,2019
Allerdale Borough Council,53103,Not Applicable,Recycling,Purchase of Bins,03/07/2019,433722,6663.32,CRAEMER UK LTD,A01016,3,2019
Allerdale Borough Council,26000,Earmarked Reserves,Comms & Marketing,Budget-Expd funded from Reserve,19/06/2019,433723,665.50,RICOH UK LTD,A00037,3,2019
Allerdale Borough Council,14202,Transport,Chief Executive,Hire Car and petrol,19/06/2019,433724,83.04,ENTERPRISE RENT A CAR,A01367,3,2019
Allerdale Borough Council,15103,Supplies & Services,Solway Coast AONB Core Funding,Purchase of Materials,19/06/2019,433725,170.00,Redacted information - included personal information ,A00561,3,2019
Allerdale Borough Council,15811,Supplies & Services,IT Services,Software Maintenance,19/06/2019,433726,14000.00,DEMOCRACY COUNTS LTD,A02563,3,2019
Allerdale Borough Council,12307,Premises,Corporate Property Maintenance,Fixtures and Fittings,26/06/2019,433727,146.37,THYSSENKRUPP ELEVATOR UK LTD,C00072,3,2019
Allerdale Borough Council,14202,Transport,Chief Executive,Hire Car and petrol,19/06/2019,433728,172.60,ENTERPRISE RENT A CAR,A01367,3,2019
Allerdale Borough Council,12101,Premises,Corporate Property Maintenance,External Maintenance & Decoration,19/06/2019,433729,707.00,ASHCROFT DEMOLITION (CUMBRIA) LTD,C00197,3,2019
Allerdale Borough Council,15810,Supplies & Services,Corporate Transformation,Software Licences,10/07/2019,433730,6075.00,INFORMU SOLUTIONS LTD,A02491,3,2019
Allerdale Borough Council,53103,Not Applicable,Recycling,Purchase of Bins,10/07/2019,433731,6366.50,CRAEMER UK LTD,A01016,3,2019
Allerdale Borough Council,20150,Third Party Payments,Footways,General Partnership Service Fees,03/07/2019,433732,926.00,ELECTRICITY NORTH WEST LTD,A00471,3,2019
Allerdale Borough Council,20150,Third Party Payments,Footways,General Partnership Service Fees,03/07/2019,433733,926.00,ELECTRICITY NORTH WEST LTD,A00471,3,2019
Allerdale Borough Council,15601,Supplies & Services,2019 Elections,Postage,19/06/2019,433734,2619.51,ROYAL MAIL LETTERS,X00021,3,2019
Allerdale Borough Council,12408,Premises,Corporate Property Maintenance,Water & Sewage,19/06/2019,433735,71.05,SCOTTISH WATER BUSINESS STREAM LTD,X00271,3,2019
Allerdale Borough Council,12402,Premises,Homelessness,Electricity,19/06/2019,433736,10.93,OPUS ENERGY,X00226,3,2019
Allerdale Borough Council,12402,Premises,Homelessness,Electricity,19/06/2019,433737,24.64,OPUS ENERGY,X00226,3,2019
Allerdale Borough Council,12402,Premises,Homelessness,Electricity,19/06/2019,433738,13.27,OPUS ENERGY,X00226,3,2019
Allerdale Borough Council,12402,Premises,Homelessness,Electricity,19/06/2019,433739,13.90,OPUS ENERGY,X00226,3,2019
Allerdale Borough Council,12402,Premises,Homelessness,Electricity,19/06/2019,433740,49.96,OPUS ENERGY,X00226,3,2019
Allerdale Borough Council,12402,Premises,Homelessness,Electricity,19/06/2019,433741,31.53,OPUS ENERGY,X00226,3,2019
Allerdale Borough Council,12402,Premises,Homelessness,Electricity,19/06/2019,433742,16.20,OPUS ENERGY,X00226,3,2019
Allerdale Borough Council,12408,Premises,Corporate Property Maintenance,Water & Sewage,19/06/2019,433743,180.66,SCOTTISH WATER BUSINESS STREAM LTD,X00271,3,2019
Allerdale Borough Council,15703,Supplies & Services,IT Services,Call Charges,26/06/2019,433744,1685.52,BRITISH TELECOM PLC,A00363,3,2019
Allerdale Borough Council,15703,Supplies & Services,IT Services,Call Charges,26/06/2019,433745,1040.78,BRITISH TELECOM PLC,A00363,3,2019
Allerdale Borough Council,12101,Premises,Keswick Public Toliets,External Maintenance & Decoration,19/06/2019,433746,917.00,Redacted information - included personal information ,C00008,3,2019
Allerdale Borough Council,15506,Supplies & Services,Food and Occupational Health,Professional Services,19/06/2019,433747,165.00,BEACON VETERINARY CENTRE,A00708,3,2019
Allerdale Borough Council,12201,Premises,Multi Storey Car Park Utilities & Maint,Internal Maintenance,19/06/2019,433748,376.00,Redacted information - included personal information ,C00008,3,2019
Allerdale Borough Council,12201,Premises,Public Convenience Cleaning,Internal Maintenance,19/06/2019,433749,390.00,WF SUPPORT SERVICES LTD,C00013,3,2019
Allerdale Borough Council,21150,Transfer Payments,Community Housing Fund (Rev),General Grants,19/06/2019,433750,500.00,GREYSOUTHEN VILLAGE HALL,M00085,3,2019
Allerdale Borough Council,54105,Capital Expenditure,Disabled Facilities Grants,Grants  Private Individuals (Capital),19/06/2019,433751,3117.28,PARTNERSHIP IN PROPERTY MANAGEMENT LTD,X00120,3,2019
Allerdale Borough Council,54105,Capital Expenditure,Disabled Facilities Grants,Grants  Private Individuals (Capital),19/06/2019,433752,3207.98,PARTNERSHIP IN PROPERTY MANAGEMENT LTD,X00120,3,2019
Allerdale Borough Council,54105,Capital Expenditure,Disabled Facilities Grants,Grants  Private Individuals (Capital),19/06/2019,433753,2801.63,DOLPHIN STAIRLIFTS CUMBRIA,X00107,3,2019
Allerdale Borough Council,54105,Capital Expenditure,Disabled Facilities Grants,Grants  Private Individuals (Capital),19/06/2019,433754,4300.00,DOLPHIN STAIRLIFTS CUMBRIA,X00107,3,2019
Allerdale Borough Council,54105,Capital Expenditure,Disabled Facilities Grants,Grants  Private Individuals (Capital),19/06/2019,433755,3725.00,HANDICARE ACCESSIBILITY LTD,X00211,3,2019
Allerdale Borough Council,12402,Premises,Tenanted Properties,Electricity,19/06/2019,433756,24.09,ENGIE POWER LIMITED ,X00286,3,2019
Allerdale Borough Council,15402,Supplies & Services,Multi-functional Printers,Photocopier Charges,19/06/2019,433757,2257.03,KONICA MINOLTA BUSINESS SOLUTIONS UK LTD,A01556,3,2019
Allerdale Borough Council,16350,Supplies & Services,Homelessness,Miscellaneous Expenses,19/06/2019,433758,380.00,BR PROPERTIES MANAGEMENT,M00239,3,2019
Allerdale Borough Council,15812,Supplies & Services,New Cash Receipting System,Software Development,03/07/2019,433759,9000.00,CIVICA UK LIMITED,A00006,3,2019
Allerdale Borough Council,20150,Third Party Payments,Footway Lighting Scheme,General Partnership Service Fees,25/06/2019,433760,-0.01,ELECTRICITY NORTH WEST LTD,A00471,3,2019
Allerdale Borough Council,33150,Income,Building Control - Non-Chargeable,Other Fees Income,26/06/2019,433761,20.83,BROCKBANK SOLICITORS,A01761,3,2019
Allerdale Borough Council,15810,Supplies & Services,Corporate Improvement Team,Software Licences,10/07/2019,433762,3600.00,INFORMU SOLUTIONS LTD,A02491,3,2019
Allerdale Borough Council,15810,Supplies & Services,Building Control - Chargeable,Software Licences,10/07/2019,433763,280.00,PHOENIX SOFTWARE LTD,A00229,3,2019
Allerdale Borough Council,15101,Supplies & Services,Corporate Property Maintenance,Equipment Costs,10/07/2019,433764,2875.00,NUWAY AUDIO VISUAL LTD,C00131,3,2019
Allerdale Borough Council,15400,Supplies & Services,Planning Policy,"Budget-Printing,Stationery & Office Supp",26/06/2019,433765,390.00,FIRPRESS PRINTERS,A00063,3,2019
Allerdale Borough Council,15302,Supplies & Services,Building Control - Chargeable,Protective Clothing,26/06/2019,433766,27.50,THOMAS ARMSTRONG ,A00091,3,2019
Allerdale Borough Council,20150,Third Party Payments,Footway Lighting Scheme,General Partnership Service Fees,25/06/2019,433767,0.01,ELECTRICITY NORTH WEST LTD,A00471,3,2019
Allerdale Borough Council,21150,Transfer Payments,Corporate Priorities,General Grants,26/06/2019,433768,355.50,PHOENIX HSC (UK) LTD,A01906,3,2019
Allerdale Borough Council,15203,Supplies & Services,Members Services,Catering Costs and Consumables,26/06/2019,433769,59.40,AL'S KITCHEN LTD,A00187,3,2019
Allerdale Borough Council,10601,Employee Costs,Training,External Courses & Seminar Fees,26/06/2019,433770,583.33,SODEXO MOTIVATION SOLUTIONS UK LTD,A02558,3,2019
Allerdale Borough Council,15503,Supplies & Services,Revenue,Court and Tribunal Costs,26/06/2019,433771,519.00,HMCTS,A00275,3,2019
Allerdale Borough Council,12302,Premises,Solway Coast AONB Core Funding,Building Cleaning,03/07/2019,433772,19.93,VIKING DIRECT,A00828,3,2019
Allerdale Borough Council,10601,Employee Costs,Training,External Courses & Seminar Fees,26/06/2019,433773,700.00,COPELAND BOROUGH COUNCIL,A00589,3,2019
Allerdale Borough Council,16350,Supplies & Services,Housing,Miscellaneous Expenses,26/06/2019,433774,72.00,Redacted information - included personal information ,C00008,3,2019
Allerdale Borough Council,15501,Supplies & Services,Planning Policy,Consultants Fees,10/07/2019,433775,1250.00,WSP UK LIMITED,C00232,3,2019
Allerdale Borough Council,12202,Premises,Corporate Property Maintenance,Electrical Repairs and Service,26/06/2019,433776,347.70,JJ GROUP (CONTRACTING) LTD,C00038,3,2019
Allerdale Borough Council,15506,Supplies & Services,Legal Services,Professional Services,10/07/2019,433777,500.00,KINGS CHAMBERS,A00348,3,2019
Allerdale Borough Council,15502,Supplies & Services,Legal Services,Land Registry Fees,25/06/2019,433778,54.00,HM LAND REGISTRY ,A00505,3,2019
Allerdale Borough Council,15502,Supplies & Services,Legal Services,Land Registry Fees,25/06/2019,433779,6.00,HM LAND REGISTRY ,A00505,3,2019
Allerdale Borough Council,15502,Supplies & Services,Assistance - Housing Services,Land Registry Fees,18/06/2019,433780,48.00,HM LAND REGISTRY ,A00505,3,2019
Allerdale Borough Council,14105,Transport,Allerdale Fleet,"Fuel, Lubricants & Consumables",20/06/2019,433781,281.58,BP OIL UK LTD,X00022,3,2019
Allerdale Borough Council,14105,Transport,Property Services Pay Group,"Fuel, Lubricants & Consumables",,433782,404.54,BP OIL UK LTD,X00022,3,2019
Allerdale Borough Council,14105,Transport,Property Services Pay Group,"Fuel, Lubricants & Consumables",,433783,422.01,BP OIL UK LTD,X00022,3,2019
Allerdale Borough Council,14105,Transport,Solway Coast AONB Core Funding,"Fuel, Lubricants & Consumables",,433784,397.26,BP OIL UK LTD,X00022,3,2019
Allerdale Borough Council,16302,Supplies & Services,European Election 2019,Room Hire,26/06/2019,433785,195.00,ABBEYTOWN ASSEMBLY ROOM,M00045,3,2019
Allerdale Borough Council,16302,Supplies & Services,European Election 2019,Room Hire,26/06/2019,433786,65.00,PARISH ROOM AIKTON,M00112,3,2019
Allerdale Borough Council,16302,Supplies & Services,European Election 2019,Room Hire,26/06/2019,433787,113.00,ALL SOULS PAROCHIAL CHURC COUNCIL,A02336,3,2019
Allerdale Borough Council,16302,Supplies & Services,European Election 2019,Room Hire,26/06/2019,433788,100.00,ALLHALLOWS COMMUNITY CENTRE,M00049,3,2019
Allerdale Borough Council,16302,Supplies & Services,European Election 2019,Room Hire,26/06/2019,433789,120.00,VILLAGE HALL ALLONBY,M00144,3,2019
Allerdale Borough Council,16302,Supplies & Services,European Election 2019,Room Hire,26/06/2019,433790,65.00,ASHFIELD INFANTS SCHOOL,M00051,3,2019
Allerdale Borough Council,16302,Supplies & Services,European Election 2019,Room Hire,26/06/2019,433791,70.00,ASPATRIA LIBRARY,M00053,3,2019
Allerdale Borough Council,16302,Supplies & Services,European Election 2019,Room Hire,26/06/2019,433792,150.00,BAPTIST SUNDAY SCHOOL,M00054,3,2019
Allerdale Borough Council,16302,Supplies & Services,European Election 2019,Room Hire,26/06/2019,433793,200.00,BASSENTHWAITE PARISH ROOM,M00552,3,2019
Allerdale Borough Council,16302,Supplies & Services,European Election 2019,Room Hire,26/06/2019,433794,70.00,BELL INSTITUTE BOLTONGATE,M00056,3,2019
Allerdale Borough Council,16302,Supplies & Services,European Election 2019,Room Hire,26/06/2019,433795,105.00,BLENCOGO VILLAGE HALL,M00057,3,2019
Allerdale Borough Council,16302,Supplies & Services,European Election 2019,Room Hire,26/06/2019,433796,120.00,BLENNERHASSET VILLAGE HALL,M00058,3,2019
Allerdale Borough Council,16302,Supplies & Services,European Election 2019,Room Hire,26/06/2019,433797,170.00,BLINDCRAKE VILLAGE HALL,M00059,3,2019
Allerdale Borough Council,16302,Supplies & Services,European Election 2019,Room Hire,26/06/2019,433798,144.00,BOLTON LOW HOUSES VILLAGE HALL,M01654,3,2019
Allerdale Borough Council,16302,Supplies & Services,European Election 2019,Room Hire,26/06/2019,433799,140.00,BORROWDALE INSTITUTE ROSTHWAITE,M00061,3,2019
Allerdale Borough Council,16302,Supplies & Services,European Election 2019,Room Hire,26/06/2019,433800,75.00,HARRIS PARK BOWLING CLUB,M00086,3,2019
Allerdale Borough Council,16302,Supplies & Services,European Election 2019,Room Hire,26/06/2019,433801,150.00,MEMORIAL HALL BRIGHAM,M00099,3,2019
Allerdale Borough Council,16302,Supplies & Services,European Election 2019,Room Hire,26/06/2019,433802,160.00,BROUGHTON MOOR P.C.,X00061,3,2019
Allerdale Borough Council,16302,Supplies & Services,European Election 2019,Room Hire,26/06/2019,433803,225.00,THE BUSH INN TALLENTIRE,M00131,3,2019
Allerdale Borough Council,16302,Supplies & Services,European Election 2019,Room Hire,26/06/2019,433804,90.00,BUTTERMERE OLD SCHOOL HALL,M00065,3,2019
Allerdale Borough Council,16302,Supplies & Services,European Election 2019,Room Hire,26/06/2019,433805,175.00,PARISH ROOM CALDBECK,M00111,3,2019
Allerdale Borough Council,16302,Supplies & Services,European Election 2019,Room Hire,26/06/2019,433806,125.00,CALDEW HALL,M01636,3,2019
Allerdale Borough Council,16302,Supplies & Services,European Election 2019,Room Hire,26/06/2019,433807,100.00,CAMERTON VILLAGE HALL,M00066,3,2019
Allerdale Borough Council,16302,Supplies & Services,European Election 2019,Room Hire,26/06/2019,433808,40.00,CHAPEL SUNDAY SCHOOL HESKET NEWMARKET,M00067,3,2019
Allerdale Borough Council,16302,Supplies & Services,European Election 2019,Room Hire,26/06/2019,433809,149.50,COCKERMOUTH RUGBY UNION CLUB,M00081,3,2019
Allerdale Borough Council,16302,Supplies & Services,European Election 2019,Room Hire,26/06/2019,433810,160.00,COCKERMOUTH T.C.,X00065,3,2019
Allerdale Borough Council,16302,Supplies & Services,European Election 2019,Room Hire,26/06/2019,433811,150.00,CROSSCANONBY PARISH COMMUNITY CENTRE,M00069,3,2019
Allerdale Borough Council,16302,Supplies & Services,European Election 2019,Room Hire,26/06/2019,433812,120.00,CROSTHWAITE PARISH ROOMS,M00070,3,2019
Allerdale Borough Council,16302,Supplies & Services,European Election 2019,Room Hire,26/06/2019,433813,180.00,CULTERHAM HALL MAWBRAY,M00071,3,2019
Allerdale Borough Council,16302,Supplies & Services,European Election 2019,Room Hire,26/06/2019,433814,65.00,DUNCAN HILL LTD,M00134,3,2019
Allerdale Borough Council,16302,Supplies & Services,European Election 2019,Room Hire,26/06/2019,433815,150.00,EAGLESFIELD VILLAGE HALL,M00554,3,2019
Allerdale Borough Council,16302,Supplies & Services,European Election 2019,Room Hire,26/06/2019,433816,100.00,EMBLETON & DISTRICT PUBLIC HALL,M00075,3,2019
Allerdale Borough Council,16302,Supplies & Services,European Election 2019,Room Hire,26/06/2019,433817,200.00,FLEMING PLACE SOCIAL CLUB,M00556,3,2019
Allerdale Borough Council,16302,Supplies & Services,European Election 2019,Room Hire,26/06/2019,433818,180.00,FLIMBY SPORTS AND SOCIAL CLUB,M01657,3,2019
Allerdale Borough Council,16302,Supplies & Services,European Election 2019,Room Hire,26/06/2019,433819,120.00,GILCRUX VILLAGE HALL,M00078,3,2019
Allerdale Borough Council,16302,Supplies & Services,European Election 2019,Room Hire,26/06/2019,433820,200.00,GRANGE METHODIST CHURCH,M00893,3,2019
Allerdale Borough Council,16302,Supplies & Services,European Election 2019,Room Hire,26/06/2019,433821,80.00,GRASSLOT WELFARE SOCIAL CLUB,M00080,3,2019
Allerdale Borough Council,16302,Supplies & Services,European Election 2019,Room Hire,26/06/2019,433822,200.00,GREAT BROUGHTON BRITISH LEGION,M00082,3,2019
Allerdale Borough Council,16302,Supplies & Services,European Election 2019,Room Hire,26/06/2019,433823,140.00,GREAT CLIFTON VILLAGE HALL,M00083,3,2019
Allerdale Borough Council,16302,Supplies & Services,European Election 2019,Room Hire,26/06/2019,433824,75.00,GREENROW PENTECOSTAL CHURCH,M00084,3,2019
Allerdale Borough Council,16302,Supplies & Services,European Election 2019,Room Hire,26/06/2019,433825,150.00,GREYSOUTHEN VILLAGE HALL,M00085,3,2019
Allerdale Borough Council,16302,Supplies & Services,European Election 2019,Room Hire,26/06/2019,433826,150.00,WORKINGTON HERITAGE GROUP LTD,A00339,3,2019
Allerdale Borough Council,16302,Supplies & Services,European Election 2019,Room Hire,26/06/2019,433827,200.00,HIGH HARRINGTON COMMUNITY CENTRE,M00088,3,2019
Allerdale Borough Council,16302,Supplies & Services,European Election 2019,Room Hire,26/06/2019,433828,160.00,HIGHFIELD COMMUNITY ASSOCIATION,M00533,3,2019
Allerdale Borough Council,16302,Supplies & Services,European Election 2019,Room Hire,26/06/2019,433829,180.00,HIGHLAND LADDIE GLASSON,M00089,3,2019
Allerdale Borough Council,16302,Supplies & Services,European Election 2019,Room Hire,26/06/2019,433830,150.00,METHODIST CHURCH KESWICK,M00100,3,2019
Allerdale Borough Council,16302,Supplies & Services,European Election 2019,Room Hire,26/06/2019,433831,150.00,KIRKBAMPTON VILLAGE HALL,M00091,3,2019
Allerdale Borough Council,16302,Supplies & Services,European Election 2019,Room Hire,26/06/2019,433832,250.00,KIRKBRIDE BOWLING CLUB,M01637,3,2019
Allerdale Borough Council,16302,Supplies & Services,European Election 2019,Room Hire,26/06/2019,433833,120.00,KIRKSTILE COMMUNITY CENTRE,M00093,3,2019
Allerdale Borough Council,16302,Supplies & Services,European Election 2019,Room Hire,26/06/2019,433834,100.00,LINDOW HALL BOWNESS,M00095,3,2019
Allerdale Borough Council,16302,Supplies & Services,European Election 2019,Room Hire,26/06/2019,433835,130.00,LITTLE CLIFTON VILLAGE HALL,M00096,3,2019
Allerdale Borough Council,16302,Supplies & Services,European Election 2019,Room Hire,26/06/2019,433836,183.00,LOW MOOR EVANGELICAL CHURCH,M00098,3,2019
Allerdale Borough Council,16302,Supplies & Services,European Election 2019,Room Hire,26/06/2019,433837,112.00,ALLERDALE,A00342,3,2019
Allerdale Borough Council,16302,Supplies & Services,European Election 2019,Room Hire,26/06/2019,433838,144.00,UNDERSKIDDAW VILLAGE HALL,M00892,3,2019
Allerdale Borough Council,16302,Supplies & Services,European Election 2019,Room Hire,26/06/2019,433839,240.00,MOORCLOSE COMMUNITY CENTRE LTD,A00709,3,2019
Allerdale Borough Council,16302,Supplies & Services,European Election 2019,Room Hire,26/06/2019,433840,65.00,LAKES COLLEGE WEST CUMB,A00093,3,2019
Allerdale Borough Council,16302,Supplies & Services,European Election 2019,Room Hire,26/06/2019,433841,140.00,NEWLANDS OLD SCHOOLROOM,M00104,3,2019
Allerdale Borough Council,16302,Supplies & Services,European Election 2019,Room Hire,26/06/2019,433842,225.00,NEWTON ARLOSH PARISH HALL,M00105,3,2019
Allerdale Borough Council,16302,Supplies & Services,European Election 2019,Room Hire,26/06/2019,433843,150.00,NORTHSIDE COMMUNITY CENTRE,A01079,3,2019
Allerdale Borough Council,16302,Supplies & Services,European Election 2019,Room Hire,26/06/2019,433844,100.00,OULTON PARISH INSTITUTE,M00108,3,2019
Allerdale Borough Council,16302,Supplies & Services,European Election 2019,Room Hire,26/06/2019,433845,100.00,PAPCASTLE & BELLE VUE VILLAGE HALL,M00110,3,2019
Allerdale Borough Council,16302,Supplies & Services,European Election 2019,Room Hire,26/06/2019,433846,150.00,PLUMBLAND VILLAGE HALL,M00113,3,2019
Allerdale Borough Council,16302,Supplies & Services,European Election 2019,Room Hire,26/06/2019,433847,135.00,VILLAGE HALL PORTINSCALE,M00146,3,2019
Allerdale Borough Council,16302,Supplies & Services,European Election 2019,Room Hire,26/06/2019,433848,150.00,PROSPECT VILLAGE HALL,M00114,3,2019
Allerdale Borough Council,16302,Supplies & Services,European Election 2019,Room Hire,26/06/2019,433849,160.00,QUEEN STREET HALL,M00115,3,2019
Allerdale Borough Council,16302,Supplies & Services,European Election 2019,Room Hire,26/06/2019,433850,80.00,ROSLEY VILLAGE HALL,M00116,3,2019
Allerdale Borough Council,16302,Supplies & Services,European Election 2019,Room Hire,26/06/2019,433851,70.00,NEW HALL SEBERGHAM,M00103,3,2019
Allerdale Borough Council,16302,Supplies & Services,European Election 2019,Room Hire,26/06/2019,433852,200.00,THE SNOOTY FOX COUNTRY INN ULDALE,M00136,3,2019
Allerdale Borough Council,16302,Supplies & Services,European Election 2019,Room Hire,26/06/2019,433853,150.00,ST HERBERTS CHURCH HALL,M00741,3,2019
Allerdale Borough Council,16302,Supplies & Services,European Election 2019,Room Hire,26/06/2019,433854,120.00,ST MICHAELS C OF E SCHOOL,M00558,3,2019
Allerdale Borough Council,16302,Supplies & Services,European Election 2019,Room Hire,26/06/2019,433855,90.00,ST BARTHOLOMEWS CHURCH,M01655,3,2019
Allerdale Borough Council,16302,Supplies & Services,European Election 2019,Room Hire,26/06/2019,433856,150.00,ST GREGORYS RC CHURCH,M01638,3,2019
Allerdale Borough Council,16302,Supplies & Services,European Election 2019,Room Hire,26/06/2019,433857,135.00,ST. JAMES CHURCH HAYTON,M00120,3,2019
Allerdale Borough Council,16302,Supplies & Services,European Election 2019,Room Hire,26/06/2019,433858,225.00,ST JOHNS COMMUNITY HALL,M00742,3,2019
Allerdale Borough Council,16302,Supplies & Services,European Election 2019,Room Hire,26/06/2019,433859,180.00,ST MARYS CHURCH HALL WESTFIELD,M00466,3,2019
Allerdale Borough Council,16302,Supplies & Services,European Election 2019,Room Hire,26/06/2019,433860,240.00,ST MARYS CHURCH OF ENGLAND HALL,M00123,3,2019
Allerdale Borough Council,16302,Supplies & Services,European Election 2019,Room Hire,26/06/2019,433861,150.00,ST MARYS RC CHURCH HALL CHURCH RD,M00465,3,2019
Allerdale Borough Council,16302,Supplies & Services,European Election 2019,Room Hire,26/06/2019,433862,206.25,ST MICHAELS CHURCH ,A00452,3,2019
Allerdale Borough Council,16302,Supplies & Services,European Election 2019,Room Hire,26/06/2019,433863,125.00,ST MUNGOS CHURCH,M01658,3,2019
Allerdale Borough Council,16302,Supplies & Services,European Election 2019,Room Hire,26/06/2019,433864,150.00,ST. PAULS CHURCH HALL,M00127,3,2019
Allerdale Borough Council,16302,Supplies & Services,European Election 2019,Room Hire,26/06/2019,433865,200.00,SUPPER ROOM MASONIC HALL ASPATRIA,M00129,3,2019
Allerdale Borough Council,16302,Supplies & Services,European Election 2019,Room Hire,26/06/2019,433866,100.00,TANGLEWOOD CARAVAN PARK,M00130,3,2019
Allerdale Borough Council,16302,Supplies & Services,European Election 2019,Room Hire,26/06/2019,433867,85.00,TENANTS LOUNGE 8 BURNSIDE,M00559,3,2019
Allerdale Borough Council,16302,Supplies & Services,European Election 2019,Room Hire,26/06/2019,433868,150.00,THE CONFERENCE ROOM THE MINTO CENTRE,M00132,3,2019
Allerdale Borough Council,16302,Supplies & Services,European Election 2019,Room Hire,26/06/2019,433869,120.00,THE OVAL CENTRE,M00135,3,2019
Allerdale Borough Council,16302,Supplies & Services,European Election 2019,Room Hire,26/06/2019,433870,105.00,DEARHAM PARISH HALL,M00072,3,2019
Allerdale Borough Council,16302,Supplies & Services,European Election 2019,Room Hire,26/06/2019,433871,75.00,THIRLMERE RECREATION HALL,M00137,3,2019
Allerdale Borough Council,16302,Supplies & Services,European Election 2019,Room Hire,26/06/2019,433872,180.00,THURSBY PARISH HALL,M00139,3,2019
Allerdale Borough Council,16302,Supplies & Services,European Election 2019,Room Hire,26/06/2019,433873,250.00,TORPENHOW VILLAGE HALL,M00140,3,2019
Allerdale Borough Council,16302,Supplies & Services,European Election 2019,Room Hire,26/06/2019,433874,200.00,UNITED UTILITY TREATMENT WORKS,M00107,3,2019
Allerdale Borough Council,16302,Supplies & Services,European Election 2019,Room Hire,26/06/2019,433875,210.00,THE VICKY COCKERMOUTH LTD,M01573,3,2019
Allerdale Borough Council,16302,Supplies & Services,European Election 2019,Room Hire,26/06/2019,433876,100.00,WADAMS,A01245,3,2019
Allerdale Borough Council,16302,Supplies & Services,European Election 2019,Room Hire,26/06/2019,433877,40.00,WAVERTON VILLAGE HALL,M00148,3,2019
Allerdale Borough Council,16302,Supplies & Services,European Election 2019,Room Hire,26/06/2019,433878,140.00,BROUGHTON VILLAGE HALL,A01428,3,2019
Allerdale Borough Council,16302,Supplies & Services,European Election 2019,Room Hire,26/06/2019,433879,80.00,WELTON VILLAGE HALL,M00149,3,2019
Allerdale Borough Council,16302,Supplies & Services,European Election 2019,Room Hire,26/06/2019,433880,50.00,WESTNEWTON VILLAGE HALL,M00150,3,2019
Allerdale Borough Council,16302,Supplies & Services,European Election 2019,Room Hire,26/06/2019,433881,150.00,WESTWARD PARISH ROOM,M00151,3,2019
Allerdale Borough Council,16302,Supplies & Services,European Election 2019,Room Hire,26/06/2019,433882,228.00,WHEYRIGG HALL HOTEL,A02139,3,2019
Allerdale Borough Council,16302,Supplies & Services,European Election 2019,Room Hire,26/06/2019,433883,300.00,NORTH ALLERDALE DEVELOPMENT TRUST,A00970,3,2019
Allerdale Borough Council,16302,Supplies & Services,European Election 2019,Room Hire,26/06/2019,433884,62.00,WOMENS INSTITUTE HALL,M01656,3,2019
Allerdale Borough Council,16302,Supplies & Services,European Election 2019,Room Hire,26/06/2019,433885,130.00,YEW TREE HALL LORTON,M00154,3,2019
Allerdale Borough Council,16302,Supplies & Services,European Election 2019,Room Hire,26/06/2019,433886,200.00,ANTHORN VILLAGE HALL,M00050,3,2019
Allerdale Borough Council,10601,Employee Costs,Training,External Courses & Seminar Fees,10/07/2019,433887,450.00,LABC DISTRICT SURVEYORS ASSOCIATION,A00308,3,2019
Allerdale Borough Council,15803,Supplies & Services,IT Costs (Allerdale Only),Hardware Purchase,26/06/2019,433888,2766.18,STORM TECHNOLOGIES,A01018,3,2019
Allerdale Borough Council,10601,Employee Costs,Training,External Courses & Seminar Fees,10/07/2019,433889,225.00,LABC DISTRICT SURVEYORS ASSOCIATION,A00308,3,2019
Allerdale Borough Council,10601,Employee Costs,Training,External Courses & Seminar Fees,10/07/2019,433890,450.00,LABC DISTRICT SURVEYORS ASSOCIATION,A00308,3,2019
Allerdale Borough Council,10601,Employee Costs,Training,External Courses & Seminar Fees,10/07/2019,433891,450.00,LABC DISTRICT SURVEYORS ASSOCIATION,A00308,3,2019
Allerdale Borough Council,10601,Employee Costs,Training,External Courses & Seminar Fees,10/07/2019,433892,450.00,LABC DISTRICT SURVEYORS ASSOCIATION,A00308,3,2019
Allerdale Borough Council,10401,Employee Costs,Building Control Recruitment,Agency Staff Costs,10/07/2019,433893,1877.35,THE OYSTER PARTNERSHIP LTD,C00118,3,2019
Allerdale Borough Council,12101,Premises,Car Parks Inspection & Maintenance,External Maintenance & Decoration,26/06/2019,433894,1837.00,STOBBARTS LIMITED,C00204,3,2019
Allerdale Borough Council,15506,Supplies & Services,Strategic Priorities,Professional Services,26/06/2019,433895,3512.88,WOMBLE BOND DICKINSON (UK) LLP,A02640,3,2019
Allerdale Borough Council,15506,Supplies & Services,Strategic Priorities,Professional Services,26/06/2019,433896,664.10,WOMBLE BOND DICKINSON (UK) LLP,A02640,3,2019
Allerdale Borough Council,15506,Supplies & Services,Strategic Priorities,Professional Services,26/06/2019,433897,20422.53,WOMBLE BOND DICKINSON (UK) LLP,A02640,3,2019
Allerdale Borough Council,12201,Premises,Homelessness,Internal Maintenance,26/06/2019,433898,350.00,MARK TUBMAN LOCKSMITH & JOINERY,C00162,3,2019
Allerdale Borough Council,15506,Supplies & Services,Grant Homeless Prevention,Professional Services,26/06/2019,433899,6000.00,CARLISLE CITY COUNCIL,A00161,3,2019
Allerdale Borough Council,15801,Supplies & Services,Shared Revs & Bens,Hardware Installation,26/06/2019,433900,5304.03,CARLISLE CITY COUNCIL,A00161,3,2019
Allerdale Borough Council,12101,Premises,Parks Development,External Maintenance & Decoration,26/06/2019,433901,23780.18,MAYSON BROS LTD,X00132,3,2019
Allerdale Borough Council,16300,Supplies & Services,Tourism Incentive,Budget-Miscellaneous,26/06/2019,433902,345.00,SUSTRANS LIMITED,A00490,3,2019
Allerdale Borough Council,15508,Supplies & Services,Human Resources Pay Group,Subscriptions,,433903,178.99,PHOENIX SOFTWARE LTD,A00229,3,2019
Allerdale Borough Council,12101,Premises,Corporate Property Maintenance,External Maintenance & Decoration,03/07/2019,433904,504.00,WORKINGTON TOWN COUNCIL,A01615,3,2019
Allerdale Borough Council,15506,Supplies & Services,Reedlands Road Industrial Development,Professional Services,26/06/2019,433905,8112.01,PERFECT CIRCLE JV LTD,A02478,3,2019
Allerdale Borough Council,15501,Supplies & Services,Strategic Priorities,Consultants Fees,26/06/2019,433906,16807.67,PERFECT CIRCLE JV LTD,A02478,3,2019
Allerdale Borough Council,10401,Employee Costs,Customer Services Pay Group,Agency Staff Costs,26/06/2019,433907,577.10,ADECCO RECRUITMENT,A00188,3,2019
Allerdale Borough Council,14101,Transport,Waste Contract  Operational Costs,Vehicle Leasing,26/06/2019,433908,778.40,DAYS FLEET,A02515,3,2019
Allerdale Borough Council,14101,Transport,Waste Contract  Operational Costs,Vehicle Leasing,26/06/2019,433909,22000.00,FCC ENVIRONMENT SERVICES (FOCSA),A00085,3,2019
Allerdale Borough Council,15500,Supplies & Services,Economic Regeneration,Budget-Services,,433910,5977.00,ALCIUM SOFTWARE LTD,A02497,3,2019
Allerdale Borough Council,10204,Employee Costs,Allerdale Options,Staff Reward Payments,,433911,344.10,BARCLAYCARD COMMERCIAL,X00207,3,2019
Allerdale Borough Council,15101,Supplies & Services,Keswick Public Toliets,Equipment Costs,,433912,3659.83,BARCLAYCARD COMMERCIAL,X00207,3,2019
Allerdale Borough Council,26000,Earmarked Reserves,Transfer of Land Charges Data,Budget-Expd funded from Reserve,26/06/2019,433913,589.04,ADECCO RECRUITMENT,A00188,3,2019
Allerdale Borough Council,14201,Transport,Mayoral Services,Public Transport,26/06/2019,433914,320.00,DJH SILLOTH LTD T/A SOLWAY PRIVATE HIRE,M00890,3,2019
Allerdale Borough Council,10401,Employee Costs,Building Control Recruitment,Agency Staff Costs,10/07/2019,433915,1284.30,THE OYSTER PARTNERSHIP LTD,C00118,3,2019
Allerdale Borough Council,15507,Supplies & Services,Land Charges Service,Searches,26/06/2019,433916,2067.00,CUMBRIA CC,A00066,3,2019
Allerdale Borough Council,26000,Earmarked Reserves,Transfer of Land Charges Data,Budget-Expd funded from Reserve,26/06/2019,433917,589.04,ADECCO RECRUITMENT,A00188,3,2019
Allerdale Borough Council,26000,Earmarked Reserves,Licensing Service,Budget-Expd funded from Reserve,26/06/2019,433918,620.88,ADECCO RECRUITMENT,A00188,3,2019
Allerdale Borough Council,10601,Employee Costs,Training,External Courses & Seminar Fees,,433919,230.00,RTPI NORTHWEST,A01760,3,2019
Allerdale Borough Council,10601,Employee Costs,Training,External Courses & Seminar Fees,,433920,160.00,INSTITUTE OF LICENSING (EVENTS) LTD,A00315,3,2019
Allerdale Borough Council,12203,Premises,Public Convenience Cleaning,Plumbing and Heating Maintenance,26/06/2019,433921,593.00,Redacted information - included personal information ,C00008,3,2019
Allerdale Borough Council,10110,Employee Costs,Busy Bees Childcare Scheme,Salary Sacrifice,26/06/2019,433922,105.49,COMPUTERSHARE VOUCHER SERVICES,A00991,3,2019
Allerdale Borough Council,10110,Employee Costs,Busy Bees Childcare Scheme,Salary Sacrifice,26/06/2019,433923,1918.00,COMPUTERSHARE VOUCHER SERVICES,A00991,3,2019
Allerdale Borough Council,15301,Supplies & Services,Street Scene,Uniforms,26/06/2019,433924,434.98,ARCO LIMITED,A00045,3,2019
Allerdale Borough Council,15301,Supplies & Services,Street Scene,Uniforms,26/06/2019,433925,134.84,ARCO LIMITED,A00045,3,2019
Allerdale Borough Council,15301,Supplies & Services,Street Scene,Uniforms,26/06/2019,433926,14.12,ARCO LIMITED,A00045,3,2019
Allerdale Borough Council,15301,Supplies & Services,Street Scene,Uniforms,26/06/2019,433927,37.64,ARCO LIMITED,A00045,3,2019
Allerdale Borough Council,15301,Supplies & Services,Street Scene,Uniforms,26/06/2019,433928,4.71,ARCO LIMITED,A00045,3,2019
Allerdale Borough Council,15301,Supplies & Services,Street Scene,Uniforms,03/07/2019,433929,112.40,ARCO LIMITED,A00045,3,2019
Allerdale Borough Council,10401,Employee Costs,Waste Contract  Operational Costs,Agency Staff Costs,26/06/2019,433930,354.22,ADECCO RECRUITMENT,A00188,3,2019
Allerdale Borough Council,15203,Supplies & Services,Members Services,Catering Costs and Consumables,10/07/2019,433931,116.01,KENT AND SUSSEX VENDING,A02127,3,2019
Allerdale Borough Council,15501,Supplies & Services,Revenue,Consultants Fees,26/06/2019,433932,51.73,ENTERPRISE RENT A CAR,A01367,3,2019
Allerdale Borough Council,15808,Supplies & Services,IT Services,Computer Consumables,26/06/2019,433933,76.22,STORM TECHNOLOGIES,A01018,3,2019
Allerdale Borough Council,15101,Supplies & Services,Homelessness,Equipment Costs,10/07/2019,433934,24.00,ARGOS BUSINESS SOLUTION,A00411,3,2019
Allerdale Borough Council,15506,Supplies & Services,Legal Services,Professional Services,26/06/2019,433935,175.00,BROCKBANK CURWEN CAIN & HALL LTD,M00503,3,2019
Allerdale Borough Council,12409,Premises,Insurances,Buildings and Contents Insurance,26/06/2019,433936,728.00,ZURICH MUNICIPAL,A00429,3,2019
Allerdale Borough Council,12409,Premises,Insurances,Buildings and Contents Insurance,26/06/2019,433937,1689.26,ZURICH MUNICIPAL,A00429,3,2019
Allerdale Borough Council,12409,Premises,Insurances,Buildings and Contents Insurance,26/06/2019,433938,75262.05,ZURICH MUNICIPAL,A00429,3,2019
Allerdale Borough Council,12307,Premises,Corporate Property Maintenance,Fixtures and Fittings,26/06/2019,433939,146.37,THYSSENKRUPP ELEVATOR UK LTD,C00072,3,2019
Allerdale Borough Council,15808,Supplies & Services,IT Services,Computer Consumables,26/06/2019,433940,114.33,STORM TECHNOLOGIES,A01018,3,2019
Allerdale Borough Council,16300,Supplies & Services,Off-street - Owned,Budget-Miscellaneous,26/06/2019,433941,1131.09,COBALT TELEPHONE TECHNOLOGY,A01008,3,2019
Allerdale Borough Council,35106,Income,Homelessness,Dwellings Income,26/06/2019,433942,41.52,ALLERDALE ,A00342,3,2019
Allerdale Borough Council,15904,Supplies & Services,Members Services,Training,,433943,-8.45,NATIONAL PEN LTD,A00469,3,2019
Allerdale Borough Council,12402,Premises,Public Convenience Cleaning,Electricity,26/06/2019,433944,7.21,N POWER ,X00015,3,2019
Allerdale Borough Council,12403,Premises,Corporate Property Maintenance,Gas,26/06/2019,433945,212.53,CORONA ENERGY,X00003,3,2019
Allerdale Borough Council,12403,Premises,Corporate Property Maintenance,Gas,26/06/2019,433946,519.23,CORONA ENERGY,X00003,3,2019
Allerdale Borough Council,12403,Premises,Corporate Property Maintenance,Gas,26/06/2019,433947,213.16,CORONA ENERGY,X00003,3,2019
Allerdale Borough Council,12403,Premises,Corporate Property Maintenance,Gas,26/06/2019,433948,297.25,CORONA ENERGY,X00003,3,2019
Allerdale Borough Council,12403,Premises,Corporate Property Maintenance,Gas,26/06/2019,433949,159.86,CORONA ENERGY,X00003,3,2019
Allerdale Borough Council,12403,Premises,Corporate Property Maintenance,Gas,26/06/2019,433950,53.66,CORONA ENERGY,X00003,3,2019
Allerdale Borough Council,12403,Premises,Corporate Property Maintenance,Gas,26/06/2019,433951,185.79,CORONA ENERGY,X00003,3,2019
Allerdale Borough Council,12402,Premises,Corporate Property Maintenance,Electricity,26/06/2019,433952,108.35,N POWER ,X00015,3,2019
Allerdale Borough Council,12402,Premises,Corporate Property Maintenance,Electricity,26/06/2019,433953,11.18,N POWER ,X00015,3,2019
Allerdale Borough Council,12402,Premises,Corporate Property Maintenance,Electricity,26/06/2019,433954,30.47,N POWER ,X00015,3,2019
Allerdale Borough Council,12402,Premises,Corporate Property Maintenance,Electricity,26/06/2019,433955,8.02,N POWER ,X00015,3,2019
Allerdale Borough Council,12402,Premises,Corporate Property Maintenance,Electricity,26/06/2019,433956,165.90,N POWER ,X00015,3,2019
Allerdale Borough Council,12402,Premises,Corporate Property Maintenance,Electricity,26/06/2019,433957,99.86,N POWER ,X00015,3,2019
Allerdale Borough Council,12402,Premises,Corporate Property Maintenance,Electricity,26/06/2019,433958,7.34,N POWER ,X00015,3,2019
Allerdale Borough Council,12402,Premises,Corporate Property Maintenance,Electricity,26/06/2019,433959,8.85,N POWER ,X00015,3,2019
Allerdale Borough Council,12402,Premises,Public Convenience Cleaning,Electricity,26/06/2019,433960,15.55,N POWER ,X00015,3,2019
Allerdale Borough Council,12402,Premises,Public Convenience Cleaning,Electricity,26/06/2019,433961,24.31,N POWER ,X00015,3,2019
Allerdale Borough Council,12402,Premises,Public Convenience Cleaning,Electricity,26/06/2019,433962,16.52,N POWER ,X00015,3,2019
Allerdale Borough Council,12402,Premises,Public Convenience Cleaning,Electricity,26/06/2019,433963,89.73,N POWER ,X00015,3,2019
Allerdale Borough Council,12402,Premises,Multi Storey Car Park Utilities & Maint,Electricity,26/06/2019,433964,9.67,N POWER ,X00015,3,2019
Allerdale Borough Council,12402,Premises,Corporate Property Maintenance,Electricity,26/06/2019,433965,1114.03,N POWER ,X00015,3,2019
Allerdale Borough Council,12402,Premises,Corporate Property Maintenance,Electricity,26/06/2019,433966,6.11,N POWER ,X00015,3,2019
Allerdale Borough Council,12402,Premises,Public Convenience Cleaning,Electricity,26/06/2019,433967,7.21,N POWER ,X00015,3,2019
Allerdale Borough Council,12402,Premises,Car Parks Inspection & Maintenance,Electricity,26/06/2019,433968,41.97,N POWER ,X00015,3,2019
Allerdale Borough Council,12402,Premises,Multi Storey Car Park Utilities & Maint,Electricity,26/06/2019,433969,14.19,N POWER ,X00015,3,2019
Allerdale Borough Council,12402,Premises,Corporate Property Maintenance,Electricity,26/06/2019,433970,76.39,N POWER ,X00015,3,2019
Allerdale Borough Council,15704,Supplies & Services,IT Services,Mobile Phones,03/07/2019,433971,21.00,EE LIMITED,X00290,3,2019
Allerdale Borough Council,12402,Premises,Corporate Property Maintenance,Electricity,26/06/2019,433972,3270.34,N POWER,X00015,3,2019
Allerdale Borough Council,12402,Premises,Corporate Property Maintenance,Electricity,26/06/2019,433973,609.30,N POWER,X00015,3,2019
Allerdale Borough Council,12402,Premises,Corporate Property Maintenance,Electricity,26/06/2019,433974,1725.38,N POWER,X00015,3,2019
Allerdale Borough Council,12402,Premises,Multi Storey Car Park Utilities & Maint,Electricity,26/06/2019,433975,1755.16,N POWER,X00015,3,2019
Allerdale Borough Council,15506,Supplies & Services,Environmental Protection,Professional Services,26/06/2019,433976,4164.08,UNITED UTILITIES PLC,A01657,3,2019
Allerdale Borough Council,15501,Supplies & Services,Estates,Consultants Fees,26/06/2019,433977,1030.00,GEO ENVIRONMENTAL ENGINEERING LTD,A02410,3,2019
Allerdale Borough Council,15103,Supplies & Services,European Election 2019,Purchase of Materials,03/07/2019,433978,3651.08,SCARBOROUGH BOROUGH COUNCIL,A02634,3,2019
Allerdale Borough Council,15506,Supplies & Services,Food and Occupational Health,Professional Services,26/06/2019,433979,235.00,BOLLARD PROOF LTD,C00229,3,2019
Allerdale Borough Council,15506,Supplies & Services,Food and Occupational Health,Professional Services,26/06/2019,433980,235.00,BOLLARD PROOF LTD,C00229,3,2019
Allerdale Borough Council,15506,Supplies & Services,Food and Occupational Health,Professional Services,26/06/2019,433981,235.00,BOLLARD PROOF LTD,C00229,3,2019
Allerdale Borough Council,10203,Employee Costs,Chief Executive,Subsistence Allowance,,433982,10.70,BARCLAYCARD COMMERCIAL,X00207,3,2019
Allerdale Borough Council,54105,Capital Expenditure,Disabled Facilities Grants,Grants  Private Individuals (Capital),26/06/2019,433996,4482.97,DOLPHIN STAIRLIFTS CUMBRIA,X00107,3,2019
Allerdale Borough Council,54105,Capital Expenditure,Disabled Facilities Grants,Grants  Private Individuals (Capital),26/06/2019,433997,2320.00,DOLPHIN STAIRLIFTS CUMBRIA,X00107,3,2019
Allerdale Borough Council,54105,Capital Expenditure,Disabled Facilities Grants,Grants  Private Individuals (Capital),26/06/2019,433998,3194.53,PARTNERSHIP IN PROPERTY MANAGEMENT LTD,X00120,3,2019
Allerdale Borough Council,54105,Capital Expenditure,Disabled Facilities Grants,Grants  Private Individuals (Capital),26/06/2019,433999,2370.00,DOLPHIN STAIRLIFTS CUMBRIA,X00107,3,2019
Allerdale Borough Council,54105,Capital Expenditure,Disabled Facilities Grants,Grants  Private Individuals (Capital),26/06/2019,434000,10000.00,K BAILIFF & SON LIMITED,X00116,3,2019
Allerdale Borough Council,21101,Transfer Payments,Assistance - Housing Services,Private Individuals,26/06/2019,434001,120.00,AGE CONCERN NORTHWEST C,A00727,3,2019
Allerdale Borough Council,54105,Capital Expenditure,Disabled Facilities Grants,Grants  Private Individuals (Capital),26/06/2019,434002,1050.00,CONISTON CONSULTANTS LTD,X00210,3,2019
Allerdale Borough Council,54105,Capital Expenditure,Disabled Facilities Grants,Grants  Private Individuals (Capital),26/06/2019,434003,10420.00,DOLPHIN STAIRLIFTS CUMBRIA,X00107,3,2019
Allerdale Borough Council,54105,Capital Expenditure,Disabled Facilities Grants,Grants  Private Individuals (Capital),26/06/2019,434004,572.82,COMPASS SERVICES GROUP,A00839,3,2019
Allerdale Borough Council,16100,Supplies & Services,Communications and Marketing,Budget-Advertising and Promotions,26/06/2019,434005,180.00,ECLECTIC CREATIVE LIMITED,A02179,3,2019
Allerdale Borough Council,15101,Supplies & Services,Public Building Cleaning,Equipment Costs,26/06/2019,434006,152.04,WF HYGIENE & CLEANING SUPPLIES,A01794,3,2019
Allerdale Borough Council,15203,Supplies & Services,Solway Coast AONB Core Funding,Catering Costs and Consumables,26/06/2019,434007,70.84,THE GOLF HOTEL,A00749,3,2019
Allerdale Borough Council,10604,Employee Costs,Chief Executive,Hire of Training Rooms/Venues,26/06/2019,434008,239.00,WORKINGTON HERITAGE GROUP LTD,A00339,3,2019
Allerdale Borough Council,15101,Supplies & Services,Elections,Equipment Costs,10/07/2019,434009,213.67,NEOPOST LIMITED,A00455,3,2019
Allerdale Borough Council,12202,Premises,Coastal Protection and Inland Flooding,Electrical Repairs and Service,26/06/2019,434010,4588.70,JJ GROUP (CONTRACTING) LTD,C00038,3,2019
Allerdale Borough Council,12202,Premises,Corporate Property Maintenance,Electrical Repairs and Service,03/07/2019,434011,204.20,JJ GROUP (CONTRACTING) LTD,C00038,3,2019
Allerdale Borough Council,15601,Supplies & Services,Electoral Registration,Postage,26/06/2019,434012,110.88,ROYAL MAIL LETTERS,X00021,3,2019
Allerdale Borough Council,12403,Premises,Homelessness,Gas,26/06/2019,434013,70.81,NPOWER,X00277,3,2019
Allerdale Borough Council,15601,Supplies & Services,Corporate Postage and Stationary,Postage,26/06/2019,434014,870.28,UK MAIL GROUP PLC,A02371,3,2019
Allerdale Borough Council,15811,Supplies & Services,IT Services,Software Maintenance,10/07/2019,434015,439.00,DOTTED EYES LTD,A00323,3,2019
Allerdale Borough Council,16150,Supplies & Services,Revenue,General Promotions,26/06/2019,434016,52.00,Redacted information - included personal information ,M00356,3,2019
Allerdale Borough Council,15601,Supplies & Services,Corporate Postage and Stationary,Postage,26/06/2019,434017,1122.59,ROYAL MAIL LETTERS,X00021,3,2019
Allerdale Borough Council,10401,Employee Costs,Waste Contract  Operational Costs,Agency Staff Costs,26/06/2019,434018,589.04,ADECCO RECRUITMENT,A00188,3,2019
Allerdale Borough Council,10401,Employee Costs,Waste Contract  Operational Costs,Agency Staff Costs,26/06/2019,434019,449.74,ADECCO RECRUITMENT,A00188,3,2019
Allerdale Borough Council,10401,Employee Costs,Waste Contract  Operational Costs,Agency Staff Costs,26/06/2019,434020,589.04,ADECCO RECRUITMENT,A00188,3,2019
Allerdale Borough Council,10401,Employee Costs,Waste Contract  Operational Costs,Agency Staff Costs,26/06/2019,434021,362.18,ADECCO RECRUITMENT,A00188,3,2019
Allerdale Borough Council,10401,Employee Costs,Waste Contract  Operational Costs,Agency Staff Costs,26/06/2019,434022,107.46,ADECCO RECRUITMENT,A00188,3,2019
Allerdale Borough Council,10401,Employee Costs,Waste Contract  Operational Costs,Agency Staff Costs,26/06/2019,434023,589.04,ADECCO RECRUITMENT,A00188,3,2019
Allerdale Borough Council,21150,Transfer Payments,Biodiversity & Green Infrast programmes,General Grants,03/07/2019,434024,4000.00,CUMBRIA WILDLIFE TRUST LTD,A01810,3,2019
Allerdale Borough Council,26000,Earmarked Reserves,Sports Development,Budget-Expd funded from Reserve,03/07/2019,434025,1000.00,SILLOTH ON SOLWAY SPORT ASSOCIATION,M01659,3,2019
Allerdale Borough Council,51101,Capital Expenditure,Helena Thompson Development,External Contractor Payments (Capital),03/07/2019,434026,682.00,E3 ECOLOGY LTD,A02542,3,2019
Allerdale Borough Council,51101,Capital Expenditure,Helena Thompson Development,External Contractor Payments (Capital),03/07/2019,434027,824.00,E3 ECOLOGY LTD,A02542,3,2019
Allerdale Borough Council,10601,Employee Costs,Training,External Courses & Seminar Fees,10/07/2019,434028,160.00,INSTITUTE OF LICENSING (EVENTS) LTD,A00315,3,2019
Allerdale Borough Council,12202,Premises,Coastal Protection and Inland Flooding,Electrical Repairs and Service,03/07/2019,434029,1319.00,TERRIS ELECTRICAL COMPANY LTD,C00014,3,2019
Allerdale Borough Council,15506,Supplies & Services,Legal Services,Professional Services,,434030,1500.00,KINGS CHAMBERS,A00348,3,2019
Allerdale Borough Council,15102,Supplies & Services,Environmental Protection,Equipment Repair & Maintenance,,434031,695.00,GAS DATA LTD,A00378,3,2019
Allerdale Borough Council,15101,Supplies & Services,Public Building Cleaning,Equipment Costs,03/07/2019,434032,36.25,WF HYGIENE & CLEANING SUPPLIES,A01794,3,2019
Allerdale Borough Council,15501,Supplies & Services,Planning and Development,Consultants Fees,,434033,1400.00,URBAN AGILE LIMITED,A02655,3,2019
Allerdale Borough Council,16350,Supplies & Services,Mayor's Fund,Miscellaneous Expenses,03/07/2019,434034,877.71,SID8 FOUNDATION,M01396,3,2019
Allerdale Borough Council,15401,Supplies & Services,European Election 2019,General Stationery,03/07/2019,434035,71.91,ALLERDALE BOROUGH COUNCIL,X00034,3,2019
Allerdale Borough Council,14102,Transport,Off-street - Owned,Vehicle Excise Licences,,434036,122.50,BARCLAYCARD COMMERCIAL,X00207,3,2019
Allerdale Borough Council,15401,Supplies & Services,Building Control - Non-Chargeable,General Stationery,,434037,319.85,BARCLAYCARD COMMERCIAL,X00207,3,2019
Allerdale Borough Council,10203,Employee Costs,Chief Executive,Subsistence Allowance,,434038,19.83,BARCLAYCARD COMMERCIAL,X00207,3,2019
Allerdale Borough Council,75103,Holding and Control Accounts,Payroll Suspense Account,PAYROLL June 2019 Travel & Subsistence  ,,,10857.86,INLAND REVENUE,X00038,2,2018
